Cogmind - Beta 16 @@@ ROGUE MODE // 2025.10.30 @ 10:15:54 Player: H3-MLN Result: Establishing 0b11! Performance ------------- Evolutions (9) 4500 Regions Visited (32) 6400 Robots Destroyed (157) 785 Value Destroyed (6411) 6411 Prototype IDs (384) 7680 Alien Tech Used (0) 0 Bonus (33541) 33541 TOTAL SCORE: 59317 Bonus ------- High Alert Combat Kills 72 Follower Combat Kills 107 Entered Garrisons 200 Entered DSFs 1000 Acquired ECA 300 Met Zhirov 300 Met Warlord at Base 500 MAIN.C Attacked Warlord 500 Warlord Defense Kills 1322 Met Warlord at Research 2000 Invited to Help at Command 2000 Destroyed MAIN.C Guards 500 Met MAIN.C 5000 Destroyed MAIN.C Shell 5000 Destroyed MAIN.C 10000 Met Warlord at Command 2000 Win 3000 Friendly Fire -260 Cogmind --------- Core Integrity 1192/1600 Matter 300/300 Energy 346/375 System Corruption 0% Temperature Cool (11) Movement Treading (148) Location 0b11 Command Parts ------- > --- POWER (2) -------- Antimatter Reactor Micro Antimatter Reactor > --- PROPULSION (7) --- Spiked Medium Treads Biometal Heavy Treads Biometal Heavy Treads Biometal Heavy Treads > --- UTILITY (13) ----- Advanced Heat Sink High-capacity Storage Unit Enhanced Optical Array Armor Integrity Analyzer Improved Weapon Cycler Layered Medium Armor Plating Graphene Brace Improved Point Defense System Advanced Hacking Suite Advanced Hacking Suite Advanced System Shield Advanced Corruption Screen Advanced Field Recycling Unit > --- WEAPON (3) ------- Enhanced Nova Cannon Enhanced Hardcell Cannon Enhanced Hardcell Cannon > --- INVENTORY (20) --- Spiked Medium Treads Antigrav Array Combat Linear Gravjet Combat Linear Gravjet Combat Linear Gravjet Combat Linear Gravjet Matter Compressor (250) Advanced Particle Charger Enhanced Hardcell Cannon Enhanced Hardcell Cannon Smartbomb Launcher Fusion Bomb Launcher Improved Plasma Cutter Peak State ------------ > --- POWER ------------ Micro Antimatter Reactor Micro Antimatter Reactor > --- PROPULSION ------- Biometal Heavy Treads Biometal Heavy Treads Biometal Heavy Treads Combat Linear Gravjet > --- UTILITY ---------- Advanced Heat Sink High-capacity Storage Unit Enhanced Optical Array Armor Integrity Analyzer Advanced Weapon Cycler Graphene Brace Improved Point Defense System Advanced Hacking Suite Advanced Hacking Suite Advanced Hacking Suite Advanced Hacking Suite Advanced System Shield Advanced Corruption Screen > --- WEAPON ----------- Enhanced Nova Cannon Enhanced Hardcell Cannon Enhanced Hardcell Cannon > --- INVENTORY -------- Antimatter Reactor Light Antimatter Reactor Biometal Heavy Treads Antigrav Array Combat Linear Gravjet Combat Linear Gravjet Combat Linear Gravjet Combat Linear Gravjet Advanced Cryofiber Web Matter Compressor Advanced Transmission Jammer Enhanced Hardcell Cannon Enhanced Hardcell Cannon Enhanced Hardcell Cannon Smartbomb Launcher Fusion Bomb Launcher Improved Plasma Cutter [Rating: 196] Favorites ----------- Power Micro Fission Core Engine Backup Power I Power Core Micro Fission Core Reactor Micro Antimatter Reactor Propulsion Antigrav Array Treads Biometal Heavy Treads Wheel Wheel Hover Unit Antigrav Array Flight Unit Surge Thruster Utility Hacking Suite Device Makeshift Sensor Array Storage High-capacity Storage Unit Processor Enhanced Optical Array Hackware Hacking Suite Protection Layered Light Armor Plating Weapon Makeshift Sword Energy Gun Variable Charge Gun Energy Cannon Enhanced Nova Cannon Ballistic Gun Light Assault Rifle Ballistic Cannon Enhanced Hardcell Cannon Launcher Smartbomb Launcher Special Weapon Improved Plasma Cutter Slashing Weapon Makeshift Sword Piercing Weapon Lance Special Melee Weapon Improved Datajack Build | -11 -10 -10 -9 -9 -9 -8 -8 -8 -7 -7 -7 -7 -6 -6 -6 -6 -5 -5 -5 -5 -5 -5 -4 -4 -4 -4 -4 -3 -3 -2 -1 -1 ------- Run | Yrd Mat Min Mat Min Exi Min Mat Gar Fac Was Fac DSF Fac Was Fac DSF Fac Was Fac Upp Upp Zhi Pro Fac Upp Upp War Pro Res Res Acc Com Slots Evolved 18 | . . . 2 . . . 2 . 2 . . . 2 . . . 2 . . . . . . 2 . . . . 2 2 2 . Power 1 | . . . . . . . . . . . . . . . . . . . . . . . . 1 . . . . . . . . Propulsion 5 | . . . . . . . 1 . . . . . . . . . 1 . . . . . . 1 . . . . 1 1 . . Utility 11 | . . . 2 . . . 1 . 2 . . . 2 . . . 1 . . . . . . . . . . . 1 . 2 . Weapon 1 | . . . . . . . . . . . . . . . . . . . . . . . . . . . . . . 1 . . Parts Attached 204 | 8 4 2 8 . 6 . 17 6 6 1 . 1 8 1 3 9 23 1 9 2 . 1 2 8 3 1 1 1 21 14 9 28 Power 16 | 2 . . 1 . . . . . . . . . . . 1 1 1 . . . . . . . 1 . . . 3 1 1 4 Engine 4 | 2 . . 1 . . . . . . . . . . . 1 . . . . . . . . . . . . . . . . . Core 2 | . . . . . . . . . . . . . . . . 1 1 . . . . . . . . . . . . . . . Reactor 10 | . . . . . . . . . . . . . . . . . . . . . . . . . 1 . . . 3 1 1 4 Propulsion 49 | 2 3 1 2 . 1 . 6 2 . . . 1 . . . . 8 1 3 . . . 1 2 1 . . . 4 1 5 5 Treads 7 | 1 . . . . . . . . . . . . . . . . . . . . . . 1 . . . . . . . . 5 Leg . | . . . . . . . . . . . . . . . . . . . . . . . . . . . . . . . . . Wheel 2 | 1 1 . . . . . . . . . . . . . . . . . . . . . . . . . . . . . . . Hover 23 | . . . . . . . . . . . . . . . . . 6 1 3 . . . . 2 1 . . . 4 1 5 . Flight 17 | . 2 1 2 . 1 . 6 2 . . . 1 . . . . 2 . . . . . . . . . . . . . . . Utility 93 | 2 1 1 3 . 2 . 4 4 3 1 . . 7 1 2 4 7 . 4 2 . 1 1 6 1 . . 1 12 8 1 14 Device 40 | 1 . . 1 . 2 . 1 2 2 . . . 2 . 1 . 3 . 4 1 . . . 2 . . . 1 6 3 . 8 Storage 6 | 1 . . . . . . . . . . . . . . . . 1 . . . . . 1 . . . . . 3 . . . Processor 17 | . 1 . 2 . . . . 1 1 . . . 3 . . . 2 . . . . . . 2 . . . . 1 2 . 2 Hackware 21 | . . . . . . . 2 . . . . . 2 . 1 4 1 . . 1 . 1 . 2 . . . . 1 3 1 2 Protection 9 | . . 1 . . . . 1 1 . 1 . . . 1 . . . . . . . . . . 1 . . . 1 . . 2 Artifact . | . . . . . . . . . . . . . . . . . . . . . . . . . . . . . . . . . Weapon 46 | 2 . . 2 . 3 . 7 . 3 . . . 1 . . 4 7 . 2 . . . . . . 1 1 . 2 4 2 5 Energy Gun 3 | . . . . . . . . . . . . . . . . . 2 . . . . . . . . . . . 1 . . . Energy Cannon 5 | . . . . . . . . . . . . . . . . . . . 1 . . . . . . . . . 1 2 . 1 Ballistic Gun 6 | 2 . . 2 . . . 1 . 1 . . . . . . . . . . . . . . . . . . . . . . . Ballistic Cannon 14 | . . . . . . . . . . . . . . . . 2 5 . . . . . . . . . . . . 2 1 4 Launcher 5 | . . . . . . . 2 . . . . . . . . 1 . . . . . . . . . 1 . . . . 1 . Special Weapon 2 | . . . . . . . 1 . . . . . . . . . . . . . . . . . . . 1 . . . . . Impact Weapon . | . . . . . . . . . . . . . . . . . . . . . . . . . . . . . . . . . Slashing Weapon 7 | . . . . . 2 . 2 . 1 . . . 1 . . 1 . . . . . . . . . . . . . . . . Piercing Weapon 1 | . . . . . . . . . . . . . . . . . . . 1 . . . . . . . . . . . . . Special Melee Weapon 3 | . . . . . 1 . 1 . 1 . . . . . . . . . . . . . . . . . . . . . . . Unidentified Prototypes . | . . . . . . . . . . . . . . . . . . . . . . . . . . . . . . . . . Parts Lost 44 | . 1 3 2 1 . . 2 3 2 . . . . . . 5 10 . . . . . . . . . . . 3 . 1 11 Power 6 | . . . . 1 . . . . . . . . . . . 1 1 . . . . . . . . . . . . . 1 2 Propulsion 15 | . 1 1 . . . . 2 1 . . . . . . . . 7 . . . . . . . . . . . 2 . . 1 Utility 13 | . . 1 1 . . . . 1 1 . . . . . . 2 1 . . . . . . . . . . . 1 . . 5 Weapon 10 | . . 1 1 . . . . 1 1 . . . . . . 2 1 . . . . . . . . . . . . . . 3 Highest Loss Streak 6 | . 1 2 1 1 . . 2 1 2 . . . . . . 3 6 . . . . . . . . . . . 3 . 1 4 To Critical Strikes 1 | . . . . . . . . . . . . . . . . 1 . . . . . . . . . . . . . . . . Average Backups 9 | 4 6 4 4 5 4 5 5 4 4 3 5 5 4 4 3 3 5 7 7 8 8 8 8 12 12 13 13 13 14 16 15 14 Power . | . . 1 . . . . . . . . . . . . . . . . . . . . . . . . . . . . . . Propulsion 1 | 1 4 1 . 1 . . . 1 1 1 1 . . . . . . . 1 1 1 1 1 1 1 1 1 1 . 2 3 5 Utility 3 | . . . . . 1 2 2 2 2 1 2 3 3 2 1 2 2 3 1 3 3 3 3 5 5 5 6 6 6 8 5 2 Weapon 3 | . 1 2 1 2 2 2 1 . 1 1 1 1 1 2 2 . 2 4 3 3 3 4 4 5 5 5 5 5 4 4 5 4 Tool/Special . | . . . . . . . . . . . . . . . . . . . . . . . . . . . . . . . . . Unused Backups 38 | . 5 . 1 . . . . . . . . 1 1 3 . . 2 . 1 1 1 . . 3 . . . . 5 4 4 6 Power 3 | . . . . . . . . . . . . . . . . . . . . 1 . . . . . . . . 1 . . 1 Propulsion 10 | . 4 . . . . . . . . . . . . 1 . . 2 . 1 . . . . . . . . . 1 . . 1 Utility 14 | . . . . . . . . . . . . 1 1 1 . . . . . . 1 . . 1 . . . . 2 3 3 1 Weapon 10 | . 1 . . . . . . . . . . . . 1 . . . . . . . . . 2 . . . . 1 1 1 3 Tool/Special 1 | . . . 1 . . . . . . . . . . . . . . . . . . . . . . . . . . . . . Average Slot Usage (%) 89 | . 99 95 90 83 85 88 85 94 90 100 100 100 96 100 100 80 88 70 92 94 92 88 93 88 89 89 86 85 85 85 90 88 Engine 2 | . 14 14 11 6 . . 5 9 7 7 7 7 6 6 6 2 . . . . . . . . . . . . . . . . Core 2 | . . . . . . . . . . . . . . . . . 4 5 5 5 5 5 5 5 5 5 5 5 4 4 3 . Reactor 2 | . . . . . . . . . . . . . . . . . . . . . . . . . 3 5 5 5 4 4 4 7 Treads 1 | . 12 . . . . . . . . . . . . . . . . . . . . . . . . . . . . . . 11 Hover 9 | . . . . . . . . . . . . . . . . . 10 11 17 17 17 17 16 21 17 15 15 15 15 17 19 6 Flight 8 | . 2 28 22 22 22 22 21 27 23 23 23 23 20 20 20 17 6 . . . . . . . . . . . . . . . Device 10 | . 14 4 7 . 8 11 4 . 8 4 . 1 4 6 10 9 8 5 16 17 17 17 17 7 10 10 10 10 13 8 13 16 Storage 3 | . 12 . . . . . . . . . . . . . . . 2 5 5 5 5 5 5 5 5 5 5 5 4 4 4 4 Processor 17 | . 1 14 25 33 33 33 22 20 22 23 23 23 24 26 22 15 16 17 17 17 17 17 17 18 17 15 15 15 14 16 12 13 Hackware 16 | . . . . . . . 10 18 15 15 15 15 13 13 19 23 26 17 17 17 17 17 17 19 15 15 15 15 17 17 21 15 Protection 2 | . . 7 5 . . . 4 4 5 10 15 13 13 13 6 1 . . . . . . . . 2 4 5 . . . . 2 Energy Cannon 1 | . . . . . . . . . . . . . . . . . . . 1 . 2 . 5 5 5 4 2 3 3 4 3 1 Ballistic Gun 1 | . 28 25 18 22 4 . . . . . . . . . . . . . . . . . . . . . . . . . . . Ballistic Cannon 2 | . . . . . . . . . . . . . . . . . 1 . . 5 1 . . . . . . 1 2 7 8 8 Slashing Weapon 2 | . . . . . 15 22 12 8 6 7 7 7 6 6 6 3 2 . . . . . . . . . . . . . . . Special Melee Weapon 1 | . . . . . 2 . . 6 . 7 7 7 6 6 6 1 1 5 1 . . . . . . . . . . . . . Peak Build Rating 196 | 7 9 9 13 12 24 24 33 31 42 38 38 38 54 53 54 56 75 67 93 94 93 96 98 112 122 125 122 124 147 168 195 196 Average Rating 96 | 4 7 8 11 11 20 24 26 28 38 37 38 37 48 52 52 44 62 54 87 92 92 89 96 104 117 122 121 120 139 163 183 182 On Entrance 66 | . 7 9 8 12 11 24 24 30 29 38 38 38 38 53 53 52 49 51 67 92 93 93 96 98 112 122 122 122 119 145 168 195 Avg Prop Armor Cover (%) 7 | 13 12 . . . . . . . . . . . . . . 9 11 1 1 . . . . 4 5 . . . . . . 1 Naked Turns . | . . . . . . . . . . . . . . . . . . . . . . . . . . . . . . . . . Heaviest Build 133 | 14 14 7 9 5 10 10 10 9 13 11 10 10 12 11 11 12 32 17 40 40 37 34 44 46 60 62 60 64 80 94 106 133 Greatest Support 253 | 20 10 8 10 10 10 10 14 12 18 12 12 18 12 12 18 12 36 44 46 46 46 46 46 46 62 62 62 62 93 103 98 253 Greatest Overweight (x) 3 | 1 1 1 . . . . . . 1 . . . . . . 2 3 . . . . . 2 . . . . 1 . 1 1 1 Average Overweight (x) . | . . . . . . . . . . . . . . . . . . . . . . . . . . . . . . . . . Largest Inventory Capacity 20 | 8 8 5 5 5 5 5 5 5 5 5 5 5 5 5 5 5 10 10 10 10 10 10 15 15 15 15 15 15 20 20 20 20 Average Capacity 11 | 5 7 5 5 5 5 5 5 5 5 5 5 5 5 5 5 5 7 10 10 10 10 10 10 15 15 15 15 15 15 20 20 20 Most Carried 20 | 6 8 4 5 5 5 5 5 5 5 5 5 5 5 5 5 5 10 9 10 10 10 10 14 15 15 15 15 15 20 20 20 20 Average Carried 11 | 4 6 3 4 5 4 5 4 4 4 3 5 4 4 4 4 4 7 9 9 10 9 10 10 14 14 15 14 15 15 19 19 16 Final Capacity 20 | 8 5 5 5 5 5 5 5 5 5 5 5 5 5 5 5 5 10 10 10 10 10 10 15 15 15 15 15 15 20 20 20 20 Final Carried 20 | 6 4 3 5 5 5 5 5 5 3 5 5 5 5 5 5 5 9 9 10 10 10 10 14 15 15 15 15 15 20 20 20 15 Class Distribution -------------------- 25% | Hacker-Scout 15% | Hacker-Ninja 8% | Scavenger-Tank 8% | Scavenger-Scout 7% | Scavenger-Sprinter 4% | Trapper-Sprinter 3% | Mutant 3% | Hacker-Sprinter 3% | Wizard-Scout 3% | Trapper-Scout 3% | Wizard-Mutant Dominant Class ---------------- Mutant | -10/Materials Mutant | -10/Mines Scavenger-Mutant | -9/Materials Scavenger-Mutant | -9/Mines Scavenger-Scout | -9/Exiles Scavenger-Scout | -8/Mines Hacker-Sprinter | -8/Materials Scavenger-Sprinter | -8/Garrison Trapper-Scout | -7/Factory Scavenger-Sprinter | -7/Waste Scavenger-Sprinter | -7/Factory Scavenger-Sprinter | -7/DSF Scavenger-Scout | -6/Factory Scavenger-Scout | -6/Waste Scavenger-Scout | -6/Factory Scavenger-Scout | -6/DSF Hacker-Ninja | -5/Factory Hacker-Mutant | -5/Waste Hacker-Ninja | -5/Factory Hacker-Ninja | -5/Upper Caves Hacker-Ninja | -5/Upper Caves Hacker-Ninja | -5/Zhirov Hacker-Ninja | -4/Proximity Caves Hacker-Scout | -4/Factory Hacker-Scout | -4/Upper Caves Hacker-Scout | -4/Upper Caves Hacker-Scout | -4/Warlord Hacker-Scout | -3/Proximity Caves Hacker-Scout | -3/Research Hacker-Scout | -2/Research Wizard-Scout | -1/Access Scavenger-Tank | -1/Command Resources | -11 -10 -10 -9 -9 -9 -8 -8 -8 -7 -7 -7 -7 -6 -6 -6 -6 -5 -5 -5 -5 -5 -5 -4 -4 -4 -4 -4 -3 -3 -2 -1 -1 ----------- Run | Yrd Mat Min Mat Min Exi Min Mat Gar Fac Was Fac DSF Fac Was Fac DSF Fac Was Fac Upp Upp Zhi Pro Fac Upp Upp War Pro Res Res Acc Com Matter Collected 7533 | 355 230 10 91 . . . 290 292 146 104 . . 130 10 290 823 575 . 365 64 210 59 86 . 120 88 410 30 409 779 269 1298 Remotely . | . . . . . . . . . . . . . . . . . . . . . . . . . . . . . . . . . Salvage Created 6650 | 151 364 . 140 . . . 171 401 187 . . 28 . . 376 707 875 . 248 27 221 289 86 . . 90 250 . 454 497 389 699 Parts 302 | 9 23 . 10 . . . 30 31 9 . . 2 . . 9 17 46 . 12 2 4 2 4 . . 9 6 . 24 15 19 19 Haulers Intercepted 8 | . 1 . 1 . . . . . 1 . . . . . . . . . . . . . . . . . . . 1 4 . . Recyclers Shooed 11 | . 2 . 1 . . . . . . . . . . . 1 . 3 . 1 . . . . . . . . . 2 1 . . Parts Field Recycled 20 | . . . . . . . . . . . . . . . . . . . . . . . . . . . . . . . . 20 Retrieved Matter 496 | . . . . . . . . . . . . . . . . . . . . . . . . . . . . . . . . 496 Parts Self-Destructed 17 | . . . . . . . . . . . . . . . . . . . . 3 1 1 4 . . 8 . . . . . . Prevented . | . . . . . . . . . . . . . . . . . . . . . . . . . . . . . . . . . Parts Restored . | . . . . . . . . . . . . . . . . . . . . . . . . . . . . . . . . . Kills | -11 -10 -10 -9 -9 -9 -8 -8 -8 -7 -7 -7 -7 -6 -6 -6 -6 -5 -5 -5 -5 -5 -5 -4 -4 -4 -4 -4 -3 -3 -2 -1 -1 ------- Run | Yrd Mat Min Mat Min Exi Min Mat Gar Fac Was Fac DSF Fac Was Fac DSF Fac Was Fac Upp Upp Zhi Pro Fac Upp Upp War Pro Res Res Acc Com Combat Hostiles Destroyed 101 | . 7 . 4 . . . 11 9 . . . 1 . . . 10 11 . . . 8 . 2 . . 6 9 . 6 . 9 8 Melee 8 | . . . . . . . 2 4 . . . . . . . . 1 . . . . . 1 . . . . . . . . . Guns 12 | . 7 . 4 . . . . . . . . . . . . . 1 . . . . . . . . . . . . . . . Cannons 23 | . . . . . . . . . . . . . . . . 3 5 . . . . . . . . . 1 . 2 . 4 8 AOE 58 | . . . . . . . 9 5 . . . 1 . . . 7 4 . . . 8 . 1 . . 6 8 . 4 . 5 . Classes Destroyed 22 | 2 4 . 1 . . . 3 . 1 . . 1 . . 1 1 1 . . 1 . . 1 . . . 2 . . . . 3 Worker 5 | . . . . . . . 1 . . . . . . . . . . . 3 . . . . . . . . . . . 1 . Builder 4 | . . . . . . . . . . . . . . . 1 . 3 . . . . . . . . . . . . . . . Tunneler 4 | 3 . . . . . . . . . . . . . . . . . . 1 . . . . . . . . . . . . . Hauler 8 | . 1 . 1 . . . . . 1 . . . . . . . . . . . . . . . . . . . 1 4 . . Recycler 14 | 1 1 . . . . . . . 1 . . . . . 2 . 4 . 1 . . . . . . . . . 1 1 . 2 Minesweeper 2 | . . . . . . . . . . . . . . . . . . . . 1 . . . . . 1 . . . . . . Mechanic 3 | . 1 . . . . . . . . . . . . . 2 . . . . . . . . . . . . . . . . . Operator 3 | . . . . . . . . . 2 . . . . . . . . . . . . . . . . . . . . . . 1 Drone 2 | . . . . . . . . . . . . . . . . . . . . . . . 2 . . . . . . . . . Watcher 12 | . . . 1 . . . 1 . 1 . . . . . . . 3 . 1 . . . . . . . . . 4 . 1 . Swarmer 35 | . 3 . 4 . . . 3 3 . . . . . . . 3 7 . . . 1 . . . . 6 . . . . 5 . Cutter 13 | . . . . . . . 7 3 . . . . . . . 3 . . . . . . . . . . . . . . . . Grunt 27 | . 4 . . . . . . 2 . . . . . . . 2 . . . . 6 . . . . . 6 . 3 . 4 . Protector 1 | . . . . . . . . . . . . . . . . . . . . . . . . . . . 1 . . . . . Sentry 4 | . . . . . . . 1 1 . . . . . . . . 1 . . . 1 . . . . . . . . . . . Specialist 2 | . . . . . . . . . . . . 1 . . . 1 . . . . . . . . . . . . . . . . Hunter 2 | . . . . . . . . . . . . . . . . . . . . . . . . . . . . . . . . 2 Programmer 8 | . . . . . . . . . . . . . . . . . 3 . . . . . . . . . 1 . 3 . . 1 Heavy 2 | . . . . . . . . . . . . . . . . 1 . . . . . . . . . . . . . . . 1 Combat Programmer 1 | . . . . . . . . . . . . . . . . . . . . . . . . . . . . . . . . 1 Striker 1 | . . . . . . . . . . . . . . . . . . . . . . . . . . . . . . . . 1 Executioner 1 | . . . . . . . . . . . . . . . . . . . . . . . . . . . 1 . . . . . Packrat 1 | . . . . . . . . . . . . . . . . . . . . . . . 1 . . . . . . . . . Mutant 2 | . . . . . . . . . . . . . . . . . . . . . . . . . . . . . . . . 2 Best Kill Streak 8 | 3 8 . 4 . . . 3 3 3 . . 1 . . 2 4 6 . 2 1 5 . 2 . . 6 6 . 5 1 7 2 Combat Bots Only 6 | . 4 . 4 . . . 3 3 . . . 1 . . . 4 4 . . . 5 . 2 . . 6 6 . 5 . 5 2 Max Kills in Single Turn 6 | 1 1 . 1 . . . 3 2 1 . . 1 . . 1 2 6 . 1 1 2 . 1 . . 5 4 . 2 1 3 1 Gunslinging . | . . . . . . . . . . . . . . . . . . . . . . . . . . . . . . . . . Exploded 5 | . . . . . . . 3 2 . . . 1 . . . 2 4 . . . 2 . 1 . . 5 4 . 2 . 2 . Melee 1 | . . . . . . . 1 1 . . . . . . . . 1 . . . . . 1 . . . . . . . . . Uniques/NPCs Destroyed 1 | . . . . . . . . . . . . . . . . . . . . . . . . . . . . . . . . 1 MAIN.C (-1/Command) Combat | -11 -10 -10 -9 -9 -9 -8 -8 -8 -7 -7 -7 -7 -6 -6 -6 -6 -5 -5 -5 -5 -5 -5 -4 -4 -4 -4 -4 -3 -3 -2 -1 -1 -------- Run | Yrd Mat Min Mat Min Exi Min Mat Gar Fac Was Fac DSF Fac Was Fac DSF Fac Was Fac Upp Upp Zhi Pro Fac Upp Upp War Pro Res Res Acc Com Hostile Shots Fired 619 | . 56 13 42 12 . . 54 22 7 . . 15 1 . . 40 67 . 2 9 4 . . . . 13 10 . 66 4 31 151 Missed 239 | . 18 6 18 5 . . 33 6 6 . . 12 . . . 19 20 . 2 6 3 . . . . 9 2 . 24 2 11 37 Intercepted 11 | . . . . . . . . . . . . . . . . . . . . . . . . . . . . . . . . 11 Hits 380 | . 38 7 24 7 . . 21 16 1 . . 3 1 . . 21 47 . . 3 1 . . . . 4 8 . 42 2 20 114 Melee 4 | . . . . . . . . 2 . . . 2 . . . . . . . . . . . . . . . . . . . . Projectile 376 | . 38 7 24 7 . . 21 14 1 . . 1 1 . . 21 47 . . 3 1 . . . . 4 8 . 42 2 20 114 AOE 15 | . . 1 . . . . 5 1 . . . . . . . 1 . . . . . . . . . . . . . . . 7 Critical Strikes 24 | . 1 . 1 . . . 2 1 1 . . 2 . . . 2 2 . . . . . . . . 1 1 . 4 . . 6 Actively Blocked 8 | . . . . . . . . . . . . 2 . . . . . . . . . . . . . . . . . . . 6 Part Disruptions 5 | . . . . . . . . . . . . . . . . . 1 . . . . . . . . . . . . . . 4 Damage Taken 10088 | . 422 128 201 93 . . 502 283 94 . . 54 35 . . 371 1019 . . 38 22 . . . . 164 161 . 1065 145 421 4870 Core 1395 | . 71 45 72 31 . . 167 44 11 . . . . . . 68 254 . . . 22 . . . . . 17 . 185 . 80 328 Absorbed by Shields 44 | . . . 21 . . . . 23 . . . . . . . . . . . . . . . . . . . . . . . . Reduced by Siege Mode 215 | . . . . . . . . . . . . . . . . . . . . . . . . . . . . . . . . 215 Redirected to Shielding 60 | . . . . . . . . . . . . 22 10 . . . . . . . . . . . . . 28 . . . . . Regen/Repaired (Parts) 791 | . . . . . . . . . 24 . . . . . . . 202 . 172 . . . . . . . 15 . 356 22 . . Core Remaining (%) 82 | 100 . 53 . . . 74 . 61 . . . 98 . . . 92 . . . . . . 72 . . . . 98 85 100 . 74 Volleys Fired 499 | 27 38 . 18 . . . 8 5 2 . . . . . . 36 57 . 26 2 17 . 13 . . 2 24 11 73 21 26 93 Largest 3 | 2 2 . 2 . . . 1 1 1 . . . . . . 1 2 . 1 1 1 . 1 . . 1 1 1 2 2 1 3 Hottest 236 | 40 40 . 40 . . . 33 33 28 . . . . . . 46 225 . 90 51 90 . 90 . . 52 51 90 164 120 120 236 Shots Fired 709 | 54 76 . 36 . . . 8 5 2 . . . . . . 36 62 . 29 3 17 . 14 . . 2 24 11 83 33 26 188 Gun 216 | 54 76 . 36 . . . . . 2 . . . . . . . 26 . 20 . . . . . . . . . 2 . . . Cannon 401 | . . . . . . . . . . . . . . . . 8 35 . 9 3 8 . 13 . . . 3 11 67 33 23 188 Launcher 92 | . . . . . . . 8 5 . . . . . . . 28 1 . . . 9 . 1 . . 2 21 . 14 . 3 . Special . | . . . . . . . . . . . . . . . . . . . . . . . . . . . . . . . . . Kinetic 430 | 54 76 . 36 . . . . . 2 . . . . . . 8 35 . . 3 . . . . . . 3 . 24 25 10 154 Thermal 185 | . . . . . . . . . . . . . . . . . 26 . 29 . 8 . 13 . . . . 11 43 8 13 34 Explosive 92 | . . . . . . . 8 5 . . . . . . . 28 1 . . . 9 . 1 . . 2 21 . 14 . 3 . Electromagnetic 2 | . . . . . . . . . . . . . . . . . . . . . . . . . . . . . 2 . . . Robot Hit Streak 31 | 6 13 . 10 . . . . . . . . . . . . 2 4 . 1 2 . . 3 . . . 5 . 6 5 4 31 Robot Miss Streak 5 | 3 2 . 3 . . . 1 . . . . . . . . 5 3 . 2 . . . . . . . 1 . 3 3 1 3 Penetration Max 1 | . . . . . . . . . . . . . . . . . 1 . . . . . . . . . . . 1 . . 1 Secondary Targets 1 | . 1 . . . . . . . . . . . . . . . . . . . . . . . . . . . . . . . Max Gunslinging Chain 1 | . 1 . . . . . . . . . . . . . . . . . . . . . . . . . . . . . . . Shots Hit Robots 424 | 33 62 . 22 . 5 . 14 15 10 . . 1 3 . 15 8 38 . 13 5 . 7 3 . . 3 2 . 37 14 8 106 Core Hits 308 | 7 19 . 11 . . . 18 18 3 . . . . . 5 29 29 . 3 2 14 3 3 . . 5 61 . 23 5 17 33 Critical Kills 21 | . . . . . . . . . . . . . . . . . 4 . . . . . . . . . 1 . 4 4 4 4 Critical Parts Destroyed 25 | . . . . . . . . . . . . . . . . . 6 . . . . . . . . . . . 6 7 2 4 Critical Strikes 53 | . . . . . . . 1 1 1 . . 1 . . . . 10 . 1 . . . . . . 1 1 . 10 11 6 9 Destroy 47 | . . . . . . . . . . . . . . . . . 10 . . . . . . . . . 1 . 10 11 6 9 Sever 4 | . . . . . . . 1 1 1 . . 1 . . . . . . . . . . . . . . . . . . . . Impale 2 | . . . . . . . . . . . . . . . . . . . 1 . . . . . . 1 . . . . . . Melee Attacks 287 | . . . . . 5 . 35 74 30 . . 2 13 . 31 24 20 . 22 4 3 7 4 9 . 3 1 . . . . . Impact . | . . . . . . . . . . . . . . . . . . . . . . . . . . . . . . . . . Slashing 221 | . . . . . . . 35 74 27 . . 2 10 . 31 24 18 . . . . . . . . . . . . . . . Piercing 50 | . . . . . . . . . . . . . . . . . . . 19 4 3 7 4 9 . 3 1 . . . . . Sneak Attacks 44 | . . . . . 5 . 2 2 6 . . 1 3 . 7 . 3 . 11 1 . . 2 . . 1 . . . . . . Combat Hostiles 2 | . . . . . . . . 1 . . . . . . . . . . . . . . 1 . . . . . . . . . Follow-up Attacks . | . . . . . . . . . . . . . . . . . . . . . . . . . . . . . . . . . Damage Inflicted 24814 | 318 660 . 240 . . . 1168 1396 452 . . 67 . . 866 2085 1590 . 760 188 1267 620 279 . . 787 3714 . 2448 349 1283 4277 Guns 1365 | 318 660 . 240 . . . . . . . . . . . . . 119 . 28 . . . . . . . . . . . . . Cannons 6363 | . . . . . . . . . . . . . . . . 90 698 . . . . . . . . . 19 . 872 264 143 4277 Explosions 11723 | . . . . . . . 544 421 . . . . . . . 1995 370 . . . 1267 . 107 . . 608 3695 . 1576 . 1140 . Melee 5278 | . . . . . . . 624 975 452 . . 67 . . 866 . 403 . 732 188 . 620 172 . . 179 . . . . . . Ramming 85 | . . . . . . . . . . . . . . . . . . . . . . . . . . . . . . 85 . . Kinetic 6205 | 318 660 . 240 . . . . . . . . . . . . 90 698 . . . . . . . . . 19 . 334 221 143 3482 Thermal 1523 | . . . . . . . . . . . . . . . . . 119 . 28 . . . . . . . . . 538 43 . 795 Explosive 11723 | . . . . . . . 544 421 . . . . . . . 1995 370 . . . 1267 . 107 . . 608 3695 . 1576 . 1140 . Electromagnetic . | . . . . . . . . . . . . . . . . . . . . . . . . . . . . . . . . . Impact . | . . . . . . . . . . . . . . . . . . . . . . . . . . . . . . . . . Slashing 3387 | . . . . . . . 624 975 452 . . 67 . . 866 . 403 . . . . . . . . . . . . . . . Piercing 1891 | . . . . . . . . . . . . . . . . . . . 732 188 . 620 172 . . 179 . . . . . . Highest Corruption 14 | . . . . . . . . . . . . . 1 1 1 1 14 14 14 4 4 4 4 . . . . . 7 . . . Average Corruption 4 | . . . . . . . . . . . . . 1 1 1 1 5 14 6 4 4 4 4 . . . . . 6 . . . Corruption Purged 10 | . . . . . . . . . . . . . . . . . . . 10 . . . . . . . . . . . . . Corruption Blocked 9 | . . . . . . . . . . . . . . . . . . . . . . . . . . . . . . . . 9 Effects 69 | . . . . . . . . . . . . . 1 1 6 2 13 2 24 5 6 1 8 . . . . . . . . . Message Errors 10 | . . . . . . . . . . . . . 1 . 1 . 1 . 3 1 2 . 1 . . . . . . . . . Matter Fused 11 | . . . . . . . . . . . . . . . 1 . 5 . 4 . 1 . . . . . . . . . . . Heat Flow Errors 10 | . . . . . . . . . . . . . . 1 1 . 1 2 2 1 . 1 1 . . . . . . . . . Energy Discharges 19 | . . . . . . . . . . . . . . . 2 1 4 . 8 1 2 . 1 . . . . . . . . . Data Loss (minor) 11 | . . . . . . . . . . . . . . . 1 1 1 . 4 . 1 . 3 . . . . . . . . . Data Loss (major) 1 | . . . . . . . . . . . . . . . . . . . . 1 . . . . . . . . . . . . Misfires 5 | . . . . . . . . . . . . . . . . . . . 3 1 . . 1 . . . . . . . . . Alerts 2 | . . . . . . . . . . . . . . . . . 1 . . . . . 1 . . . . . . . . . Overload Shots 2 | . . . . . . . . . . . . . . . . . 2 . . . . . . . . . . . . . . . Overflow Damage 1901 | . . . . . . . 44 123 130 . . . . . 265 47 36 . 340 73 73 182 . . . 233 22 . 151 13 144 25 Projectiles 131 | . . . . . . . . . . . . . . . . . 22 . . . . . . . . . . . 71 13 . 25 Explosions 459 | . . . . . . . 41 3 . . . . . . . 47 . . . . 73 . . . . 49 22 . 80 . 144 . Melee 1311 | . . . . . . . 3 120 130 . . . . . 265 . 14 . 340 73 . 182 . . . 184 . . . . . . Knockbacks 33 | . . . . . . . . . . . . . . . . 1 7 . . . . . . . . . . . 5 1 1 18 Impact . | . . . . . . . . . . . . . . . . . . . . . . . . . . . . . . . . . Kinetic 32 | . . . . . . . . . . . . . . . . 1 6 . . . . . . . . . . . 5 1 1 18 Secondary 1 | . . . . . . . . . . . . . . . . . 1 . . . . . . . . . . . . . . . Self-Inflicted Damage 389 | . . . . . . . 72 44 . . . . . . . . . . . . . . . . . 94 . . 105 42 32 . Shots 9 | . . . . . . . 3 2 . . . . . . . . . . . . . . . . . 1 . . 2 . 1 . Rammed 1 | . . . . . . . . . . . . . . . . . . . . . . . . . . . . . . 1 . . Targets Rammed 1 | . . . . . . . . . . . . . . . . . . . . . . . . . . . . . . 1 . . Kicked . | . . . . . . . . . . . . . . . . . . . . . . . . . . . . . . . . . Crushed . | . . . . . . . . . . . . . . . . . . . . . . . . . . . . . . . . . Highest Temperature 456 | . 18 . 14 . . . 16 31 16 . . . . 236 153 . 416 242 204 158 152 86 249 . . 12 61 200 456 256 184 282 Average Temperature 84 | . 8 . 5 . . . 6 20 9 . . . . 119 73 . 125 112 52 60 62 57 79 . . 7 16 82 102 107 54 82 Received Heat Transfer 1058 | . 171 15 33 51 . . 99 77 27 . . . 9 . . 9 45 . . . 12 . . . . . 60 . 132 . . 318 Effects 14 | . . . . . . . . . . . . . . . . . 1 . . . . . . . . . . . 9 2 . 2 Shutdowns 2 | . . . . . . . . . . . . . . . . . . . . . . . . . . . . . 2 . . . Energy Bleed 4 | . . . . . . . . . . . . . . . . . . . . . . . . . . . . . 1 2 . 1 Interference 5 | . . . . . . . . . . . . . . . . . 1 . . . . . . . . . . . 3 . . 1 Damage (major) 3 | . . . . . . . . . . . . . . . . . . . . . . . . . . . . . 3 . . . Siege Activations 5 | . . . . . . . . . . . . . . . . . . . . . . . . . . . . . . . . 5 Total Turns 62 | . . . . . . . . . . . . . . . . . . . . . . . . . . . . . . . . 62 Longest Duration 25 | . . . . . . . . . . . . . . . . . . . . . . . . . . . . . . . . 25 Martial Activations . | . . . . . . . . . . . . . . . . . . . . . . . . . . . . . . . . . Shielding Activations . | . . . . . . . . . . . . . . . . . . . . . . . . . . . . . . . . . Robots Disrupted . | . . . . . . . . . . . . . . . . . . . . . . . . . . . . . . . . . Combat Hostiles . | . . . . . . . . . . . . . . . . . . . . . . . . . . . . . . . . . Robots Corrupted . | . . . . . . . . . . . . . . . . . . . . . . . . . . . . . . . . . Combat Hostiles . | . . . . . . . . . . . . . . . . . . . . . . . . . . . . . . . . . Parts Fried 3 | . . . . . . . . . . . . . . . . . . . . . . . . . . . . . . . . 3 Impact Corruptions . | . . . . . . . . . . . . . . . . . . . . . . . . . . . . . . . . . Robots Melted . | . . . . . . . . . . . . . . . . . . . . . . . . . . . . . . . . . Combat Hostiles . | . . . . . . . . . . . . . . . . . . . . . . . . . . . . . . . . . Parts Melted 1 | . . . . . . . . . . . . . . . . . . . . . . . . . . . . . . . . 1 Heat Transferred 1004 | . . . . . . . . . . . . . . . . . 185 . 37 . . . . . . . . . 481 37 . 264 Parts Sabotaged . | . . . . . . . . . . . . . . . . . . . . . . . . . . . . . . . . . Parts Stolen . | . . . . . . . . . . . . . . . . . . . . . . . . . . . . . . . . . Parts Stripped . | . . . . . . . . . . . . . . . . . . . . . . . . . . . . . . . . . Power Chain Reactions . | . . . . . . . . . . . . . . . . . . . . . . . . . . . . . . . . . Alert | -11 -10 -10 -9 -9 -9 -8 -8 -8 -7 -7 -7 -7 -6 -6 -6 -6 -5 -5 -5 -5 -5 -5 -4 -4 -4 -4 -4 -3 -3 -2 -1 -1 ------- Run | Yrd Mat Min Mat Min Exi Min Mat Gar Fac Was Fac DSF Fac Was Fac DSF Fac Was Fac Upp Upp Zhi Pro Fac Upp Upp War Pro Res Res Acc Com Maximum Alert Level 4 | . . . . . . . 2 4 3 1 . . . . . 1 1 . . . . . . . . . . . 1 . 1 . Low Security (%) 71 | 100 100 100 100 100 . 100 42 . . 37 100 100 100 100 100 30 74 100 100 . . . . 100 . . . . 73 100 78 100 Level 1 8 | . . . . . . . 30 . . 62 . . . . . 69 25 . . . . . . . . . . . 26 . 21 . Level 2 10 | . . . . . . . 26 28 75 . . . . . . . . . . . . . . . . . . . . . . . Level 3 6 | . . . . . . . . 42 24 . . . . . . . . . . . . . . . . . . . . . . . Level 4 3 | . . . . . . . . 28 . . . . . . . . . . . . . . . . . . . . . . . . Level 5 . | . . . . . . . . . . . . . . . . . . . . . . . . . . . . . . . . . High Security . | . . . . . . . . . . . . . . . . . . . . . . . . . . . . . . . . . Max Security . | . . . . . . . . . . . . . . . . . . . . . . . . . . . . . . . . . Sterilizations 1 | . . . . . . . . . . . . . . . . 1 . . . . . . . . . . . . . . . . Peak Influence 1390 | 5 147 53 100 81 . . 636 1390 736 216 130 136 189 64 27 381 266 91 58 . . . . 4 . . . . 284 159 245 108 Initial 729 | . . 53 . 31 . . . 413 729 216 130 91 71 64 9 1 199 91 42 . . . . . . . . . . 3 . 98 Average 225 | 1 51 23 18 38 . . 262 832 631 204 130 100 135 41 3 239 153 77 7 . . . . 1 . . . . 116 42 141 24 Influence Increases 6369 | 20 233 . 139 90 . . 903 1047 321 . . 45 244 . 68 430 547 . 158 35 170 15 10 32 . 225 165 . 538 279 412 243 Destroy 0b10 Robot/C 1940 | . 140 . 80 . . . 220 200 . . . 20 60 . . 200 220 . . . 160 . . . . 120 160 . 120 . 180 60 Destroy 0b10 Robot/NC 340 | 20 15 . 10 . . . 10 25 25 . . . . . 25 10 50 . 30 5 . 15 10 . . 5 5 . 30 25 10 15 Destroy Leader 290 | . 32 . 14 . . . 52 20 4 . . . 10 . . 30 36 . 2 . 10 . . . . 10 . . 40 8 22 . Allied During Kill 8 | . . . . . . . . 6 . . . . 2 . . . . . . . . . . . . . . . . . . . Trap Triggered on 0b10 80 | . . . . . . . . . 70 . . 10 . . . . . . . . . . . . . . . . . . . . Successful Hack 407 | . 16 . 4 . . . 52 20 60 . . . 30 . 30 . 12 . 34 . . . . 14 . . . . 37 42 20 36 Select Force Hacks 80 | . . . . . . . 30 . . . . . . . . . 50 . . . . . . . . . . . . . . . Disable Machine 375 | . . . . . . . 30 105 30 . . . 15 . . 30 45 . 30 . . . . . . . . . 15 . 15 60 Anti-Garrison Action 450 | . . . . . . . . 300 . . . . . . . . . . . . . . . . . . . . . 150 . . Destroy Structure 959 | . . . 1 . . . 59 131 12 . . . 7 . 13 145 44 . 32 . . . . 18 . . . . 296 24 135 42 Partial Spotted 210 | . . . . . . . 75 30 . . . . 45 . . . 15 . . . . . . . . . . . . 30 15 . Lose Combat Pursuer 1230 | . 30 . 30 90 . . 375 210 120 . . 15 75 . . 15 75 . 30 30 . . . . . 90 . . . . 15 30 Influence Decreases 6329 | 20 96 137 59 89 81 . 267 293 1093 432 56 39 195 171 80 51 668 199 201 53 100 85 10 32 . 80 194 116 532 285 258 357 Entered New Map 2555 | . . 84 . 49 81 . . 223 661 402 56 39 65 121 5 1 182 169 19 8 . 70 . . . . 145 116 . 3 . 56 Time Decay 3162 | 20 86 40 39 30 . . 215 . 392 30 . . 130 50 75 . 386 30 182 45 100 15 10 32 . 80 49 . 342 282 248 254 Lost Part 330 | . 10 13 20 10 . . 20 30 20 . . . . . . 50 100 . . . . . . . . . . . 30 . 10 17 Lost Ally 132 | . . . . . . . 32 40 20 . . . . . . . . . . . . . . . . . . . 10 . . 30 Purge Threat 150 | . . . . . . . . . . . . . . . . . . . . . . . . . . . . . 150 . . . Squads Dispatched 58 | . 1 . 2 . . . 6 . 10 . 1 1 1 . 1 2 5 . 3 . . . . 3 . . . . 6 2 9 5 Investigation 19 | . . . 1 . . . 2 . 3 . 1 . . . . . 3 . 1 . . . . 2 . . . . 2 1 2 1 Extermination 13 | . . . . . . . . . 2 . . . . . . . 2 . 2 . . . . . . . . . 3 . 2 2 Reinforcement 18 | . 1 . 1 . . . 3 . 1 . . 1 1 . 1 2 . . . . . . . 1 . . . . 1 1 2 2 Assault 4 | . . . . . . . . . 4 . . . . . . . . . . . . . . . . . . . . . . . Garrison 4 | . . . . . . . 1 . . . . . . . . . . . . . . . . . . . . . . . 3 . Intercept . | . . . . . . . . . . . . . . . . . . . . . . . . . . . . . . . . . Searches Triggered . | . . . . . . . . . . . . . . . . . . . . . . . . . . . . . . . . . Unchained Authorized 3 | . . . . . . . . . . . . . . . . . . . . . . . . 1 . 1 . 1 . . . . Construction Impeded . | . . . . . . . . . . . . . . . . . . . . . . . . . . . . . . . . . Haulers Reinforced 2 | . . . . . . . . . . . . . . . . . . . . . . . . . . . . . 1 1 . . Active Scanning Responses . | . . . . . . . . . . . . . . . . . . . . . . . . . . . . . . . . . Cargo Convoy Interrupts 1 | . . . . . . . . . 1 . . . . . . . . . . . . . . . . . . . . . . . Stealth | -11 -10 -10 -9 -9 -9 -8 -8 -8 -7 -7 -7 -7 -6 -6 -6 -6 -5 -5 -5 -5 -5 -5 -4 -4 -4 -4 -4 -3 -3 -2 -1 -1 --------- Run | Yrd Mat Min Mat Min Exi Min Mat Gar Fac Was Fac DSF Fac Was Fac DSF Fac Was Fac Upp Upp Zhi Pro Fac Upp Upp War Pro Res Res Acc Com Distress Signals 49 | . . . 1 . . . 4 1 1 . . . . . . . . . . . . . . . . . 2 . . 12 5 23 Communications Jammed 75 | . . . . . . . 18 . . . . . . . . . 21 . 1 . . . 1 . . . . . 17 . 11 6 Distress Signals 67 | . . . . . . . 17 . . . . . . . . . 21 . 1 . . . . . . . . . 15 . 11 2 Times Spotted 290 | . 11 17 23 6 . . 44 24 9 . . 5 8 . 1 11 25 4 4 2 7 . 5 . . 11 11 . 14 10 11 27 Peak Tracking Total 14 | . 4 14 13 4 . . 9 10 4 . . 5 4 . . 4 6 4 1 2 5 . 9 . . 6 14 . 5 3 5 5 Tactical Retreats 40 | . 2 2 1 2 . . 9 6 3 . . 1 3 . . 1 2 . 2 1 . . . . . 2 . . . . 1 2 Traps | -11 -10 -10 -9 -9 -9 -8 -8 -8 -7 -7 -7 -7 -6 -6 -6 -6 -5 -5 -5 -5 -5 -5 -4 -4 -4 -4 -4 -3 -3 -2 -1 -1 ------- Run | Yrd Mat Min Mat Min Exi Min Mat Gar Fac Was Fac DSF Fac Was Fac DSF Fac Was Fac Upp Upp Zhi Pro Fac Upp Upp War Pro Res Res Acc Com Traps Triggered 21 | . . . . . . . . 6 3 . . . 2 . 2 1 1 . 3 . . . . . . . . . 2 . 1 . Indirectly . | . . . . . . . . . . . . . . . . . . . . . . . . . . . . . . . . . Trap Hack Attempts 35 | . . . . . . . . 12 . . . . . . . . 2 . 21 . . . . . . . . . . . . . Triggered 1 | . . . . . . . . . . . . . . . . . . . 1 . . . . . . . . . . . . . Disarmed . | . . . . . . . . . . . . . . . . . . . . . . . . . . . . . . . . . Reprogrammed 6 | . . . . . . . . 2 . . . . . . . . . . 4 . . . . . . . . . . . . . Reused 10 | . . . . . . . . . 7 . . 1 . . . . . . . . 2 . . . . . . . . . . . Traps Extracted 6 | . . . . . . . . 2 . . . . . . . . . . 4 . . . . . . . . . . . . . Installed 20 | . . . . . . . . . 9 . . 1 . . . . . . . . 2 . . . . . . . . . . 8 Triggered 10 | . . . . . . . . . 7 . . 1 . . . . . . . . 2 . . . . . . . . . . . Most Traps Carried 10 | . . . . . . . . 10 10 1 1 1 . . . . . . 4 8 8 6 6 6 6 8 8 8 8 8 8 8 Machines | -11 -10 -10 -9 -9 -9 -8 -8 -8 -7 -7 -7 -7 -6 -6 -6 -6 -5 -5 -5 -5 -5 -5 -4 -4 -4 -4 -4 -3 -3 -2 -1 -1 ---------- Run | Yrd Mat Min Mat Min Exi Min Mat Gar Fac Was Fac DSF Fac Was Fac DSF Fac Was Fac Upp Upp Zhi Pro Fac Upp Upp War Pro Res Res Acc Com Machines Disabled 31 | . . . . . . . 2 11 2 . . . 1 . . 2 3 . 2 . . . . . . . 1 . 1 1 1 4 Max in Single Turn 2 | . . . . . . . 1 1 1 . . . 1 . . 1 2 . 1 . . . . . . . 1 . 1 1 1 1 Garrison Access 8 | . . . . . . . . . 2 . . . . . . . 1 . 1 . . . . . . . . . 2 2 . . Garrison Relay 5 | . . . . . . . . 5 . . . . . . . . . . . . . . . . . . . . . . . . Machines Repaired . | . . . . . . . . . . . . . . . . . . . . . . . . . . . . . . . . . Machines Dismantled 2 | . . . . . . . . . . . . . . . . . . . . . . . . . . . 1 . . . . 1 Machines Sabotaged . | . . . . . . . . . . . . . . . . . . . . . . . . . . . . . . . . . Overloaded Fab Kills . | . . . . . . . . . . . . . . . . . . . . . . . . . . . . . . . . . Hacking | -11 -10 -10 -9 -9 -9 -8 -8 -8 -7 -7 -7 -7 -6 -6 -6 -6 -5 -5 -5 -5 -5 -5 -4 -4 -4 -4 -4 -3 -3 -2 -1 -1 --------- Run | Yrd Mat Min Mat Min Exi Min Mat Gar Fac Was Fac DSF Fac Was Fac DSF Fac Was Fac Upp Upp Zhi Pro Fac Upp Upp War Pro Res Res Acc Com Machines Accessed 122 | . 3 . 5 1 2 . 17 2 18 . 1 . 5 . 5 . 8 . 8 . 1 4 . 6 . . 7 . 9 4 9 7 Terminals 60 | . 3 . 4 . . . 11 2 9 . 1 . 4 . 2 . . . 3 . . . . 3 . . . . 3 3 6 6 Fabricators 12 | . . . . . . . . . 4 . . . 1 . . . 2 . . . . . . 3 . . . . 1 . 1 . Repair Stations 10 | . . . . . . . 2 . 1 . . . . . 2 . 2 . 1 . . . . . . . . . 2 . . . Recycling Units 8 | . . . . . . . 1 . 1 . . . . . 1 . 1 . 2 . . . . . . . . . . . 1 1 Scanalyzers 10 | . . . 1 . . . 2 . 2 . . . . . . . 2 . 1 . . . . . . . . . 1 . 1 . Garrison Access 7 | . . . . . . . 1 . 1 . . . . . . . 1 . 1 . . . . . . . . . 2 1 . . Total Hacks 373 | . 9 . 18 1 5 . 62 4 52 . 3 . 13 . 11 . 30 . 32 . 1 17 . 22 . . 17 . 25 12 24 15 Successful 253 | . 2 . 9 1 5 . 38 2 37 . 1 . 7 . 8 . 23 . 23 . 1 17 . 12 . . 17 . 16 7 19 8 Failed 117 | . 7 . 9 . . . 23 2 15 . 2 . 6 . 3 . 7 . 8 . . . . 10 . . . . 8 5 5 7 Catastrophic 16 | . 3 . 2 . . . . 1 1 . . . 2 . . . . . 1 . . . . . . . . . 2 1 . 3 Database Lockouts 3 | . . . . . . . 1 . . . . . . . . . . . 1 . . . . . . . . . 1 . . . Manual 130 | . 4 . 8 . 1 . 38 1 19 . . . 3 . 2 . 2 . 10 . . . . 10 . . . . 11 7 2 12 Terminals 177 | . 9 . 15 . . . 46 4 23 . 3 . 7 . 4 . . . 7 . . . . 11 . . . . 11 11 14 12 Fabricators 44 | . . . . . . . . . 10 . . . 6 . . . 11 . . . . . . 11 . . . . 2 . 4 . Repair Stations 30 | . . . . . . . 4 . 4 . . . . . 3 . 10 . 4 . . . . . . . . . 5 . . . Recycling Units 27 | . . . . . . . 3 . 3 . . . . . 4 . 2 . 9 . . . . . . . . . . . 3 3 Scanalyzers 46 | . . . 3 . . . 7 . 11 . . . . . . . 6 . 11 . . . . . . . . . 5 . 3 . Garrison Access 8 | . . . . . . . 2 . 1 . . . . . . . 1 . 1 . . . . . . . . . 2 1 . . Terminal Hacks 103 | . 2 . 5 1 5 . 10 2 6 . 1 . 2 . 4 . . . 1 . 1 17 . 4 . . 17 . 4 6 10 5 Record 24 | . . . . . 4 . . . . . . . . . . . . . . . . 5 . . . . 15 . . . . . Part Schematic 11 | . . . . . . . 2 . 1 . . . . . . . . . . . . 4 . 1 . . . . . 2 1 . Robot Schematic 1 | . 1 . . . . . . . . . . . . . . . . . . . . . . . . . . . . . . . Robot Analysis 7 | . . . . . . . 1 . . . . . 1 . . . . . . . . 4 . . . . . . . . 1 . Prototype ID Bank 4 | . . . . . . . . . . . . . . . . . . . . . . 4 . . . . . . . . . . Open Door 8 | . . . . 1 . . . . . . . . . . . . . . . . 1 . . . . . 2 . . . 3 1 Open DSF 3 | . . . . . . . . . . . 1 . . . 1 . . . . . . . . . . . . . . 1 . . Level Access Points 3 | . . . . . . . 1 . . . . . . . . . . . . . . . . . . . . . 1 1 . . Branch Access Points 3 | . 1 . . . . . . . . . . . . . . . . . . . . . . 1 . . . . . 1 . . Emergency Access Points 4 | . . . 1 . . . 1 1 . . . . . . 1 . . . . . . . . . . . . . . . . . Machine Index 2 | . . . . . . . . . . . . . . . . . . . 1 . . . . . . . . . 1 . . . Terminal Index 1 | . . . . . . . . . . . . . . . . . . . . . . . . . . . . . . . . 1 Alert Level 1 | . . . . . . . . . . . . . . . . . . . . . . . . . . . . . . . 1 . Unreport Threat 1 | . . . . . . . . . . . . . . . . . . . . . . . . . . . . . 1 . . . Locate Traps 5 | . . . 1 . . . . . 1 . . . . . 1 . . . . . . . . 1 . . . . . . 1 . Recall Investigation 2 | . . . . . . . 1 . . . . . . . . . . . . . . . . 1 . . . . . . . . Recall Extermination 4 | . . . . . . . . . 2 . . . . . . . . . . . . . . . . . . . 1 . 1 . Recall Reinforcements 1 | . . . . . . . 1 . . . . . . . . . . . . . . . . . . . . . . . . . Recall Assault 1 | . . . . . . . . . 1 . . . . . . . . . . . . . . . . . . . . . . . Hauler Manifests 1 | . . . 1 . . . . . . . . . . . . . . . . . . . . . . . . . . . . . Registered Components 5 | . . . 1 . . . 1 . . . . . 1 . 1 . . . . . . . . . . . . . . 1 . . Zone Layout 7 | . . . 1 . . . 2 . 1 . . . . . . . . . . . . . . . . . . . . . 2 1 Patrol Navigation 1 | . . . . . . . . 1 . . . . . . . . . . . . . . . . . . . . . . . . Proto ID Catalog 1 | . . . . . 1 . . . . . . . . . . . . . . . . . . . . . . . . . . . Disengage Seal 2 | . . . . . . . . . . . . . . . . . . . . . . . . . . . . . . . . 2 Fabricator Hacks 27 | . . . . . . . . . 6 . . . 4 . . . 8 . . . . . . 4 . . . . 1 . 4 . Network Status 2 | . . . . . . . . . 1 . . . . . . . 1 . . . . . . . . . . . . . . . Load Schematic 14 | . . . . . . . . . 3 . . . 2 . . . 4 . . . . . . 2 . . . . 1 . 2 . Build 11 | . . . . . . . . . 2 . . . 2 . . . 3 . . . . . . 2 . . . . . . 2 . Repair Station Hacks 21 | . . . . . . . 3 . 3 . . . . . 1 . 8 . 4 . . . . . . . . . 2 . . . Scan Component 9 | . . . . . . . 1 . 1 . . . . . . . 4 . 2 . . . . . . . . . 1 . . . Repair 8 | . . . . . . . 1 . 1 . . . . . . . 3 . 2 . . . . . . . . . 1 . . . Refit 4 | . . . . . . . 1 . 1 . . . . . 1 . 1 . . . . . . . . . . . . . . . Recycling Unit Hacks 7 | . . . . . . . . . . . . . . . 2 . 2 . 1 . . . . . . . . . . . 2 . Report Inventory 4 | . . . . . . . . . . . . . . . 1 . 1 . 1 . . . . . . . . . . . 1 . Retrieve Components 3 | . . . . . . . . . . . . . . . 1 . 1 . . . . . . . . . . . . . 1 . Scanalyzer 37 | . . . 2 . . . 5 . 11 . . . . . . . 2 . 10 . . . . . . . . . 4 . 3 . Insert Component 9 | . . . . . . . 2 . 4 . . . . . . . 1 . 1 . . . . . . . . . 1 . . . Analyze 12 | . . . . . . . 3 . 4 . . . . . . . 1 . 3 . . . . . . . . . 1 . . . Retrieve Study 16 | . . . 2 . . . . . 3 . . . . . . . . . 6 . . . . . . . . . 2 . 3 . Garrison Access Hacks 7 | . . . . . . . 1 . 1 . . . . . . . 1 . 1 . . . . . . . . . 2 1 . . Unlock Access 1 | . . . . . . . 1 . . . . . . . . . . . . . . . . . . . . . . . . . Seal Access 6 | . . . . . . . . . 1 . . . . . . . 1 . 1 . . . . . . . . . 2 1 . . Unauthorized Hacks 51 | . . . 2 . . . 19 . 10 . . . 1 . 1 . 2 . 6 . . . . 4 . . . . 3 . . 3 Terminals 26 | . . . 2 . . . 15 . 7 . . . . . . . . . 1 . . . . . . . . . 1 . . . Track 4 | . . . . . . . 4 . . . . . . . . . . . . . . . . . . . . . . . . . Assimilate 4 | . . . . . . . 3 . . . . . . . . . . . . . . . . . . . . . 1 . . . Botnet 6 | . . . 1 . . . 2 . 2 . . . . . . . . . 1 . . . . . . . . . . . . . Operators 3 | . . . 1 . . . 1 . 1 . . . . . . . . . . . . . . . . . . . . . . . Skim 9 | . . . . . . . 5 . 4 . . . . . . . . . . . . . . . . . . . . . . . Fabricators 10 | . . . . . . . . . 2 . . . 1 . . . 2 . . . . . . 4 . . . . 1 . . . Prioritize 1 | . . . . . . . . . 1 . . . . . . . . . . . . . . . . . . . . . . . Fabnet 3 | . . . . . . . . . 1 . . . 1 . . . . . . . . . . 1 . . . . . . . . Haulers 1 | . . . . . . . . . . . . . . . . . . . . . . . . 1 . . . . . . . . Overload 1 | . . . . . . . . . . . . . . . . . 1 . . . . . . . . . . . . . . . Recompile 4 | . . . . . . . . . . . . . . . . . 1 . . . . . . 2 . . . . 1 . . . Repair Stations 1 | . . . . . . . . . . . . . . . . . . . . . . . . . . . . . 1 . . . Patch 1 | . . . . . . . . . . . . . . . . . . . . . . . . . . . . . 1 . . . Recycling Units 12 | . . . . . . . 2 . 1 . . . . . 1 . . . 5 . . . . . . . . . . . . 3 Monitor 1 | . . . . . . . . . . . . . . . . . . . 1 . . . . . . . . . . . . . Reject 3 | . . . . . . . 1 . . . . . . . . . . . 1 . . . . . . . . . . . . 1 Recyclers 3 | . . . . . . . . . . . . . . . 1 . . . 1 . . . . . . . . . . . . 1 Mask 5 | . . . . . . . 1 . 1 . . . . . . . . . 2 . . . . . . . . . . . . 1 Scanalyzers 1 | . . . . . . . 1 . . . . . . . . . . . . . . . . . . . . . . . . . Extract 1 | . . . . . . . 1 . . . . . . . . . . . . . . . . . . . . . . . . . Garrison Access 1 | . . . . . . . 1 . . . . . . . . . . . . . . . . . . . . . . . . . Reprogram 1 | . . . . . . . 1 . . . . . . . . . . . . . . . . . . . . . . . . . Data Cores Recovered 4 | . . . . . . . 1 . 2 . . . . . . . . . . . . . . . . . . . . . . 1 Used 2 | . . . . . . . 1 . 1 . . . . . . . . . . . . . . . . . . . . . . . Hacking Detections 79 | . 3 . 4 . . . 15 2 14 . 1 . 5 . 3 . 5 . 6 . . . . 4 . . . . 5 2 6 4 Full Trace Events 10 | . 1 . 1 . . . 1 . 3 . 1 . . . . . 1 . . . . . . . . . . . . 1 1 . Feedback Events . | . . . . . . . . . . . . . . . . . . . . . . . . . . . . . . . . . Feedback Blocked . | . . . . . . . . . . . . . . . . . . . . . . . . . . . . . . . . . Robot Schematics Acquired 1 | . 1 . . . . . . . . . . . . . . . . . . . . . . . . . . . . . . . Robots Built . | . . . . . . . . . . . . . . . . . . . . . . . . . . . . . . . . . Authchips . | . . . . . . . . . . . . . . . . . . . . . . . . . . . . . . . . . Time . | . . . . . . . . . . . . . . . . . . . . . . . . . . . . . . . . . Total Robot Build Rating . | . . . . . . . . . . . . . . . . . . . . . . . . . . . . . . . . . Part Schematics Acquired 22 | . . . . . . . 6 . 5 . . . . . . . 1 . 1 . . 4 . 1 . . . . 1 2 1 . Parts Built 12 | . . . . . . . . . 1 . . . 2 . . . 4 . . . . . . 2 . . . . . . 3 . Authchips 7 | . . . . . . . . . . . . . 2 . . . 3 . . . . . . 1 . . . . . . 1 . Time 726 | . . . . . . . . . 168 . . . 168 . . . 110 . . . . . . 192 . . . . . . 88 . Total Part Build Rating 75 | . . . . . . . . . 6 . . . 8 . . . 19 . . . . . . 16 . . . . . . 26 . Part Studies Acquired 15 | . . . 2 . . . . . 3 . . . . . . . . . 5 . . . . . . . . . 2 . 3 . Parts Repaired 8 | . . . . . . . 1 . 1 . . . . . . . 3 . 2 . . . . . . . . . 1 . . . Time 400 | . . . . . . . 30 . 44 . . . . . . . 154 . 146 . . . . . . . . . 26 . . . Parts Recycled . | . . . . . . . . . . . . . . . . . . . . . . . . . . . . . . . . . Recycled Matter . | . . . . . . . . . . . . . . . . . . . . . . . . . . . . . . . . . Retrieved Matter . | . . . . . . . . . . . . . . . . . . . . . . . . . . . . . . . . . Retrieved Components 7 | . . . . . . . . . . . . . . . 3 . 2 . . . . . . . . . . . . . 2 . Parts Scanalyzed 8 | . . . . . . . 2 . 3 . . . . . . . 1 . 1 . . . . . . . . . 1 . . . Part Schematics Acquired 8 | . . . . . . . 1 . 4 . . . . . . . 1 . 1 . . . . . . . . . 1 . . . Parts Damaged 3 | . . . . . . . 1 . 1 . . . . . . . 1 . . . . . . . . . . . . . . . Bothacking | -11 -10 -10 -9 -9 -9 -8 -8 -8 -7 -7 -7 -7 -6 -6 -6 -6 -5 -5 -5 -5 -5 -5 -4 -4 -4 -4 -4 -3 -3 -2 -1 -1 ------------ Run | Yrd Mat Min Mat Min Exi Min Mat Gar Fac Was Fac DSF Fac Was Fac DSF Fac Was Fac Upp Upp Zhi Pro Fac Upp Upp War Pro Res Res Acc Com Used RIF Installer . | . . . . . . . . . . . . . . . . . . . . . . . . . . . . . . . . . Robots Hacked 7 | . . . . . . . . . 2 . . . 1 . . . 2 . 2 . . . . . . . . . . . . . Non-combat 7 | . . . . . . . . . 2 . . . 1 . . . 2 . 2 . . . . . . . . . . . . . Combat . | . . . . . . . . . . . . . . . . . . . . . . . . . . . . . . . . . Robot Hacks Applied 8 | . . . . . . . . . 2 . . . 1 . . . 2 . 3 . . . . . . . . . . . . . parse_system 1 | . . . . . . . . . . . . . . . . . . . 1 . . . . . . . . . . . . . find_chute 4 | . . . . . . . . . 2 . . . 1 . . . 1 . . . . . . . . . . . . . . . find_fabricator 2 | . . . . . . . . . . . . . . . . . 1 . 1 . . . . . . . . . . . . . find_dsf 1 | . . . . . . . . . . . . . . . . . . . 1 . . . . . . . . . . . . . Relay Couplers Released 22 | . . . . . . . . 18 1 . . . . . . . . . . . . . . . . . . . . 3 . . Machine Destruction 22 | . . . . . . . . 18 1 . . . . . . . . . . . . . . . . . . . . 3 . . Fabnet Peak Effective % 4 | . . . . . . . . . . . . . 3 3 3 3 4 4 4 4 4 4 1 1 1 1 1 . . . . . Robots Rewired 5 | . . . . . 3 . . . 1 . . . 1 . . . . . . . . . . . . . . . . . . . Allies Hacked . | . . . . . . . . . . . . . . . . . . . . . . . . . . . . . . . . . Hacks Repelled . | . . . . . . . . . . . . . . . . . . . . . . . . . . . . . . . . . Allies | -11 -10 -10 -9 -9 -9 -8 -8 -8 -7 -7 -7 -7 -6 -6 -6 -6 -5 -5 -5 -5 -5 -5 -4 -4 -4 -4 -4 -3 -3 -2 -1 -1 -------- Run | Yrd Mat Min Mat Min Exi Min Mat Gar Fac Was Fac DSF Fac Was Fac DSF Fac Was Fac Upp Upp Zhi Pro Fac Upp Upp War Pro Res Res Acc Com Total Allies 10 | . . . . . 3 . 4 . 1 . . . 1 . . . . . . . . . . . . . . . 1 . . . Largest Group 4 | . . . . . 3 3 4 2 1 . . . 1 1 . . . . . . . . . . . . . . 1 . . . Highest-Rated Group 47 | . . . . . 37 37 47 32 16 . . . 32 32 . . . . . . . . . . . . . . 45 . . . Highest-Rated Ally 45 | . . . . . 21 21 21 16 16 . . . 32 32 . . . . . . . . . . . . . . 45 . . . Initial Warlord ECA Mod 18 | . . . . . . . . . 10 10 10 10 9 9 9 9 18 18 18 18 18 18 17 17 17 17 17 16 16 15 14 14 Total Orders 12 | . . . . . . . . . . . . . 2 1 . . . . . . . . . . . . . 3 . . . 6 STAY 3 | . . . . . . . . . . . . . 1 1 . . . . . . . . . . . . . . . . . 1 FOLLOW 1 | . . . . . . . . . . . . . 1 . . . . . . . . . . . . . . . . . . . EXPLORE 8 | . . . . . . . . . . . . . . . . . . . . . . . . . . . . 3 . . . 5 Ally Attacks 49 | . . . . . . . 19 18 4 . . . 8 . . . . . . . . . . . . . . . . . . . Total Damage 782 | . . . . . . . 210 225 61 . . . 286 . . . . . . . . . . . . . . . . . . . Kills 4 | . . . . . . . . 1 . . . . 3 . . . . . . . . . . . . . . . . . . . Allies Corrupted . | . . . . . . . . . . . . . . . . . . . . . . . . . . . . . . . . . Allies Melted 7 | . . . . . . . 1 . . . . . . . . . . . . . . . . . . . 1 . . 4 . 1 Intel | -11 -10 -10 -9 -9 -9 -8 -8 -8 -7 -7 -7 -7 -6 -6 -6 -6 -5 -5 -5 -5 -5 -5 -4 -4 -4 -4 -4 -3 -3 -2 -1 -1 ------- Run | Yrd Mat Min Mat Min Exi Min Mat Gar Fac Was Fac DSF Fac Was Fac DSF Fac Was Fac Upp Upp Zhi Pro Fac Upp Upp War Pro Res Res Acc Com Active Infowar (turns) 13818 | 36 233 110 194 69 224 36 539 1211 930 64 1 37 276 109 410 264 913 72 933 222 306 74 417 244 123 173 750 249 837 1049 613 2100 Optics 12109 | . . . 176 69 224 36 539 999 . . . . 208 109 410 264 913 72 933 222 306 74 417 244 123 173 750 249 837 1049 613 2100 Sensors 8030 | . . . . . 1 . . . 858 . . . 152 109 410 187 479 . 919 222 306 74 417 244 123 173 750 249 698 1032 566 61 IFF 47 | . . . . . . . . . . . . . . . . . . . . . . . . . . . . . 47 . . . Terrain 190 | . . . . . . . 123 . . . . . . . . . . . . . . . . . . . . . 67 . . . Structural 313 | . . . . . . . . . . . . . . . 251 62 . . . . . . . . . . . . . . . . Seismic 303 | 36 233 34 . . . . . . . . . . . . . . . . . . . . . . . . . . . . . . T.N.C. 2332 | . . . 100 69 224 36 265 499 930 64 1 37 107 . . . . . . . . . . . . . . . . . . . Machine Analysis 7732 | . 20 110 194 69 224 36 539 1211 930 64 1 37 276 109 410 264 913 72 933 222 306 74 417 244 57 . . . . . . . Jamming 2532 | . . . . . 3 . 20 . . . . . . . . . 466 . 185 . 9 . 19 7 . . . . 837 17 509 460 ECM 2 | . . . . . . . . . 2 . . . . . . . . . . . . . . . . . . . . . . . Robot Analysis Total 7 | . . . . . . . 1 . . . . . 1 . . . . . . . . 4 . . . . . . . . 1 . Derelict Logs Recovered 8 | . . 1 . . . . . . . . . . . . . . . . . 2 . . 2 . 2 1 . . . . . . Drone Launches 10 | . . . . . . . . . . . . . . . . . . . . . . . . . . . . 3 . . . 7 Drone Recoveries 5 | . . . . . . . . . . . . . . . . . . . . . . . . . . . . 1 . . . 4 Exploration | -11 -10 -10 -9 -9 -9 -8 -8 -8 -7 -7 -7 -7 -6 -6 -6 -6 -5 -5 -5 -5 -5 -5 -4 -4 -4 -4 -4 -3 -3 -2 -1 -1 ------------- Run | Yrd Mat Min Mat Min Exi Min Mat Gar Fac Was Fac DSF Fac Was Fac DSF Fac Was Fac Upp Upp Zhi Pro Fac Upp Upp War Pro Res Res Acc Com Turns Passed 13993 | 211 233 110 194 69 224 36 539 1211 930 64 1 37 276 109 410 264 913 72 933 222 306 74 417 244 123 173 750 249 837 1049 613 2100 Spaces Moved 17830 | 139 125 236 323 186 406 35 996 1438 1877 211 3 72 526 214 641 301 835 112 985 407 481 140 389 431 277 336 874 338 1041 1616 762 1077 Core 13 | 6 . . . . . . . . . . . . . . . 4 3 . . . . . . . . . . . . . . . Treads 428 | 1 . . . . . . . . . . . . . . . . . . . . . . . . . . . . . . . 427 Legs . | . . . . . . . . . . . . . . . . . . . . . . . . . . . . . . . . . Wheels 225 | 132 93 . . . . . . . . . . . . . . . . . . . . . . . . . . . . . . . Hover 9281 | . . . . . . . . . . . . . . . . . 442 112 985 407 481 140 389 431 277 336 874 338 1041 1616 762 650 Flight 7883 | . 32 236 323 186 406 35 996 1438 1877 211 3 72 526 214 641 297 390 . . . . . . . . . . . . . . . Fastest Speed 20 | 50 37 37 37 37 37 37 29 20 20 29 29 20 29 29 20 29 29 55 38 38 38 38 38 38 33 45 45 45 38 43 43 44 Average Speed 42 | 81 80 37 37 37 37 37 33 28 29 29 29 28 29 29 28 30 48 60 47 38 38 38 38 38 41 45 45 51 46 43 51 89 Slowest Speed 200 | 160 95 120 37 37 37 37 40 29 69 29 29 29 29 29 29 150 200 61 56 38 38 38 196 38 45 45 45 105 52 102 137 185 Overloaded Moves 19 | . . . . . . . . 7 2 . . 4 . . 6 . . . . . . . . . . . . . . . . . Propulsion Burnouts . | . . . . . . . . . . . . . . . . . . . . . . . . . . . . . . . . . Robots Hopped 51 | . . 1 8 5 . . 17 1 7 . . 3 1 . 1 . 7 . . . . . . . . . . . . . . . Potential Cave-ins 2 | . . . . . . . . . . . . . . . . . . . . . 2 . . . . . . . . . . . Cave-ins Triggered . | . . . . . . . . . . . . . . . . . . . . . . . . . . . . . . . . . Exploration Rate (%) 52 | 6 32 63 45 48 90 11 71 95 39 95 . 69 14 87 13 87 22 78 21 62 76 61 68 11 54 61 94 55 30 47 20 48 Regions Visited 32 Branch Regions 13 Pre-discovered Areas 10 | . . . . . 1 . 2 . . . . . . . . . . . . 2 . 3 1 . 1 . . . . . . . Known Exits Taken 17 | . 1 . . . . . 1 . . . 1 . . . 1 . . . 1 1 1 1 1 1 1 1 1 1 1 1 1 . Unknown Exits Taken 6 | 1 . 1 1 1 1 1 . . . . . . . . . . . . . . . . . . . . . . . . . . Scrap Searched 19 | . . 1 . 2 . . . . . . . . . . . . . . . 3 2 . 4 . 4 2 . 1 . . . . Spaces Dug 335 | . . . . . . . 47 64 12 . . . 7 . 13 . 7 . 12 . 6 . 7 9 . 63 1 5 21 5 47 9 Terrain Destroyed 1095 | . . . . . . . 83 64 12 . . . 7 . 13 234 21 . 16 . 110 . 27 9 . 63 145 11 186 7 69 18 Melee 94 | . . . . . . . 10 28 12 . . . 7 . 13 . 4 . 7 . 3 . . 9 . . 1 . . . . . Projectile 114 | . . . . . . . . . . . . . . . . . 7 . 9 . 8 . 13 . . . 1 11 29 7 11 18 AOE 887 | . . . . . . . 73 36 . . . . . . . 234 10 . . . 99 . 14 . . 63 143 . 157 . 58 . Terrain Rammed . | . . . . . . . . . . . . . . . . . . . . . . . . . . . . . . . . . Walls Destroyed . | . . . . . . . . . . . . . . . . . . . . . . . . . . . . . . . . . Machines Disabled . | . . . . . . . . . . . . . . . . . . . . . . . . . . . . . . . . . Actions | -11 -10 -10 -9 -9 -9 -8 -8 -8 -7 -7 -7 -7 -6 -6 -6 -6 -5 -5 -5 -5 -5 -5 -4 -4 -4 -4 -4 -3 -3 -2 -1 -1 --------- Run | Yrd Mat Min Mat Min Exi Min Mat Gar Fac Was Fac DSF Fac Was Fac DSF Fac Was Fac Upp Upp Zhi Pro Fac Upp Upp War Pro Res Res Acc Com Total 23263 | 184 192 255 358 180 478 57 1143 2150 2225 213 2 81 631 262 833 408 1251 115 1398 463 583 149 637 498 284 347 1195 401 1312 1943 955 2080 Wait 3767 | 5 9 19 5 . 55 23 70 518 249 . . 1 76 42 125 17 275 3 285 44 58 . 216 31 . . 278 47 107 252 136 821 Move 17703 | 138 124 233 306 175 405 34 966 1435 1863 210 2 65 524 213 638 300 821 111 984 406 480 139 388 430 276 335 873 337 1040 1615 761 1076 Hop 46 | . . 1 8 5 . . 12 1 7 . . 3 1 . 1 . 7 . . . . . . . . . . . . . . . Pick Up 159 | 6 8 . 7 . 2 . 7 2 4 1 . 3 3 2 1 1 12 . 15 1 7 . 4 8 2 1 3 . 30 10 9 10 Fast Attach 139 | 6 1 1 3 . 4 . 13 2 5 1 . . 5 . 2 15 22 1 4 . . 1 4 5 2 . . 2 13 8 7 12 Attach 85 | 1 4 1 2 . . . 4 3 8 . . . 2 . . 1 7 . 9 . 6 . 1 1 1 . 3 . 8 4 4 15 Detach 26 | . . . . . . . 2 2 4 1 . . . . . 2 5 . 2 . . . 1 . . . . . 2 . . 5 Swap 104 | 1 . . 3 . 2 . 7 7 8 . . 3 3 1 1 . 5 . 8 5 3 1 1 3 . 5 2 1 14 9 3 8 Drop 210 | . 8 . 6 . 5 . 19 3 6 . . 3 4 4 4 12 18 . 11 1 7 1 5 11 3 1 3 3 25 22 9 16 Fire 499 | 27 38 . 18 . . . 8 5 2 . . . . . . 36 57 . 26 2 17 . 13 . . 2 24 11 73 21 26 93 Melee 287 | . . . . . 5 . 35 74 30 . . 2 13 . 31 24 20 . 22 4 3 7 4 9 . 3 1 . . . . . Ram 1 | . . . . . . . . . . . . . . . . . . . . . . . . . . . . . . 1 . . Kick . | . . . . . . . . . . . . . . . . . . . . . . . . . . . . . . . . . Crush . | . . . . . . . . . . . . . . . . . . . . . . . . . . . . . . . . . Escape Stasis 157 | . . . . . . . . 86 30 . . . . . 30 . . . 11 . . . . . . . . . . . . . Rewire 1 | . . . . . . . . . . . . . . . . . . . . . . . . . . . . . . 1 . . Trap 55 | . . . . . . . . 12 9 . . 1 . . . . 2 . 21 . 2 . . . . . . . . . . 8 Miscellaneous 24 | . . . . . . . . . . . . . . . . . . . . . . . . . . . 8 . . . . 16 Route ------- -11/Scrapyard -10/Materials -10/Mines -9/Materials -9/Mines (discovered 3 exits: *Mat x2 / *Exi) -9/Exiles (discovered 2 exits: [*Min x2]) -8/Mines -8/Materials (discovered 4 exits: *Fac x3 / Gar) -8/Garrison (discovered 3 exits: *Fac x3) -7/Factory (discovered 3 exits: *Fac x2 / *Sto) -7/Waste -7/Factory -7/DSF -6/Factory -6/Waste -6/Factory (discovered 3 exits: *Fac x2 / DSF) -6/DSF -5/Factory -5/Waste -5/Factory (discovered 2 exits: *Fac / *Upp) -5/Upper Caves -5/Upper Caves (discovered 2 exits: *Fac / *Zhi) -5/Zhirov -4/Proximity Caves -4/Factory (discovered 3 exits: *Res / *Upp x2) -4/Upper Caves -4/Upper Caves -4/Warlord -3/Proximity Caves -3/Research (discovered 4 exits: *Res x3 / Qua) -2/Research (discovered 5 exits: *Acc x3 / *Tes x2) -1/Access -1/Command (discovered 2 exits: [*Sur x2]) 0b11 Command History --------- Turn | Location | Event 10 | -11/Scrapyard | Discovered new exit (range 16) 212 | -11/Scrapyard | Entered Materials 256 | -10/Materials | Identified exit to Mines 308 | -10/Materials | Build established: Mutant 445 | -10/Materials | Entered Mines 474 | -10/Mines | Learned Materials trap positions 478 | -10/Mines | Assembled infested the area 549 | -10/Mines | Discovered new exit (range 15) 555 | -10/Mines | Entered Materials 555 | -9/Materials | Evolved 2 slots: Utility x2 556 | -9/Materials | Loaded intel: 23 trap records 659 | -9/Materials | Discovered new exit (range 9) 749 | -9/Materials | Entered Mines 762 | -9/Mines | Found a damaged Exp. Sensor Array with a note attached 791 | -9/Mines | Discovered new exit (range 5) 797 | -9/Mines | Discovered new exit (range 5) 802 | -9/Mines | Found the Drone Emporium 816 | -9/Mines | Deemed a non-threat by the Exiles lab entrance 816 | -9/Mines | Discovered new exit (range 5) 818 | -9/Mines | Entered Exiles 818 | -9/Exiles | Found Exiles lab destroyed 823 | -9/Exiles | Discovered new exit (range 15) 928 | -9/Exiles | Learned location of Zion (-6) 947 | -9/Exiles | Opened EX-Vault 989 | -9/Exiles | Discovered new exit (range 11) 1042 | -9/Exiles | Entered Mines 1042 | -8/Mines | Accompanied by 3 allies 1052 | -8/Mines | Discovered new exit (range 9) 1078 | -8/Mines | Entered Materials 1078 | -8/Materials | Accompanied by 3 allies 1078 | -8/Materials | Evolved 2 slots: Propulsion x1, Utility x1 1169 | -8/Materials | Lost 3 allies 1230 | -8/Materials | Repaired Broken Mak. Sword 1247 | -8/Materials | Identified exit to Factory 1247 | -8/Materials | Central database locked down 1331 | -8/Materials | Learned location of 1 exit from Extension 1372 | -8/Materials | Learned 2 Storage zone layouts 1405 | -8/Materials | Learned Storage trap positions 1436 | -8/Materials | Learned location of 1 exit from Extension 1437 | -8/Materials | Learned Storage terminal intel 1438 | -8/Materials | Learned 8 Factory zone layouts 1439 | -8/Materials | Learned location of 1 exit from Extension 1444 | -8/Materials | Learned location of Extension (-5) 1460 | -8/Materials | Learned location of 1 exit from Extension 1563 | -8/Materials | Identified exit to Garrison 1611 | -8/Materials | Garrison activated, responded to threat 1617 | -8/Materials | Entered Garrison 1617 | -8/Garrison | Accompanied by 2 allies 1697 | -8/Garrison | Triggered checkpoint 1726 | -8/Garrison | Garrison Relay disabled 1753 | -8/Garrison | Triggered checkpoint 1823 | -8/Garrison | Triggered checkpoint 1853 | -8/Garrison | Build established: Scavenger-Sprinter 1885 | -8/Garrison | Discovered exit to Factory (range 11) 1915 | -8/Garrison | Garrison Relay disabled 1933 | -8/Garrison | Triggered checkpoint 1968 | -8/Garrison | Garrison Relay disabled 2400 | -8/Garrison | Discovered exit to Factory (range 16) 2427 | -8/Garrison | Garrison Relay disabled 2480 | -8/Garrison | Garrison Relay disabled 2489 | -8/Garrison | Discovered exit to Factory (range 11) 2601 | -8/Garrison | Build established: Trapper-Sprinter 2828 | -8/Garrison | Entered Factory 2828 | -7/Factory | Evolved 2 slots: Utility x2 2829 | -7/Factory | Identified exit to Storage 3165 | -7/Factory | Build established: Trapper-Scout 3228 | -7/Factory | First assault squad dispatched 3236 | -7/Factory | Fabricated Mni. Smartbomb Launcher? 3347 | -7/Factory | Fabricated Mni. Smartbomb Launcher? 3363 | -7/Factory | Discovered new exit (range 4) 3363 | -7/Factory | Identified exit to Factory 3482 | -7/Factory | Repaired Mak. Sword 3545 | -7/Factory | Cargo convoy interrupted 3618 | -7/Factory | Build established: Scavenger-Scout 3671 | -7/Factory | Discovered exit to Factory (range 16) 3758 | -7/Factory | Manually triggered Chute Trap 3758 | -7/Factory | Sucked down chute 3758 | -7/Factory | Entered Waste 3758 | -7/Waste | The area was eerily silent 3807 | -7/Waste | Discovered new exit (range 15) 3822 | -7/Waste | Identified exit to Factory 3822 | -7/Waste | Entered Factory 3823 | -7/Factory | Identified exit to DSF 3823 | -7/Factory | Entered DSF 3837 | -7/DSF | Additional patrols routed to DSF 3851 | -7/DSF | Discovered exit to Factory (range 16) 3860 | -7/DSF | Entered Factory 3860 | -6/Factory | Evolved 2 slots: Utility x2 4027 | -6/Factory | Fabricated Mak. Sword? 4116 | -6/Factory | Fabricated Mak. Sword (x1) 4136 | -6/Factory | Manually triggered Chute Trap 4136 | -6/Factory | Sucked down chute 4136 | -6/Factory | Entered Waste 4136 | -6/Waste | The area was eerily silent 4141 | -6/Waste | 1 allies followed down the chute 4168 | -6/Waste | Discovered new exit (range 22) 4177 | -6/Waste | Identified exit to Factory 4245 | -6/Waste | Entered Factory 4318 | -6/Factory | Discovered new exit (range 7) 4319 | -6/Factory | Identified exit to Factory 4654 | -6/Factory | Discovered exit to Factory (range 19) 4655 | -6/Factory | Identified exit to DSF 4655 | -6/Factory | Entered DSF 4734 | -6/DSF | Additional patrols routed to DSF 4773 | -6/DSF | Discovered exit to Factory (range 22) 4876 | -6/DSF | Sterilization system engaged 4896 | -6/DSF | Ambient heat levels rising (+10) 4906 | -6/DSF | Lost 3 parts (1u2w) 4911 | -6/DSF | Ambient heat levels rising (+10) 4919 | -6/DSF | Entered Factory 4919 | -5/Factory | Evolved 2 slots: Propulsion x1, Utility x1 5047 | -5/Factory | Build established: Hacker-Sprinter 5106 | -5/Factory | Repaired Broken Smartbomb Launcher 5145 | -5/Factory | Repaired Surge Thruster+ 5185 | -5/Factory | Repaired Surge Thruster+ 5305 | -5/Factory | Fabricated Surge Thruster? 5354 | -5/Factory | Lost 6 parts (1p4n1w) 5762 | -5/Factory | Fabricated Smartbomb Launcher (x1) 5806 | -5/Factory | Fabricated Mak. Sensor Array (x1) 5821 | -5/Factory | System corruption reached 10% 5832 | -5/Factory | Manually triggered Chute Trap 5832 | -5/Factory | Sucked down chute 5832 | -5/Factory | Entered Waste 5837 | -5/Waste | Spotted C-40 Crusher 5838 | -5/Waste | Spotted C-40 Crusher 5838 | -5/Waste | Spotted C-40 Crusher 5850 | -5/Waste | Spotted C-40 Crusher 5856 | -5/Waste | Spotted C-40 Crusher 5863 | -5/Waste | Spotted C-40 Crusher 5871 | -5/Waste | Discovered new exit (range 22) 5903 | -5/Waste | Identified exit to Factory 5904 | -5/Waste | Entered Factory 6377 | -5/Factory | Discovered new exit (range 6) 6379 | -5/Factory | Identified exit to Upper Caves 6385 | -5/Factory | Discovered new exit (range 10) 6389 | -5/Factory | Identified exit to Factory 6435 | -5/Factory | Build established: Hacker-Ninja 6521 | -5/Factory | Repaired Broken Smartbomb Launcher? 6607 | -5/Factory | Repaired Antigrav Array? 6737 | -5/Factory | Central database locked down 6837 | -5/Factory | Entered Upper Caves 6845 | -5/Upper Caves | Learned location of Armory (-3) 6909 | -5/Upper Caves | Met a Warlord Commander 6910 | -5/Upper Caves | Learned location of Warlord (-4) 6911 | -5/Upper Caves | Warlord Commander delivered Encrypted Comm Array 6912 | -5/Upper Caves | Found Encrypted Comm Array 6991 | -5/Upper Caves | Encountered a Warlord checkpoint 6993 | -5/Upper Caves | Discovered new exit (range 16) 7003 | -5/Upper Caves | Identified exit to Upper Caves 7035 | -5/Upper Caves | Learned 4 Factory zone layouts 7059 | -5/Upper Caves | Entered another Upper Caves area 7065 | -5/Upper Caves | Discovered exit to Factory (range 9) 7229 | -5/Upper Caves | Spotted B-75 Beast 7362 | -5/Upper Caves | Discovered new exit (range 8) 7365 | -5/Upper Caves | Identified exit to Zhirov 7365 | -5/Upper Caves | Entered Zhirov 7366 | -5/Zhirov | Discovered new exit (range 3) 7373 | -5/Zhirov | Met Zhirov 7380 | -5/Zhirov | Learned location of Quarantine (-3) 7380 | -5/Zhirov | Learned location of Testing (-2) 7380 | -5/Zhirov | Learned location of Command (-1) 7383 | -5/Zhirov | Zhirov requested help retrieving the SGEMP Prototype 7439 | -5/Zhirov | Identified exit to Proximity Caves 7439 | -5/Zhirov | Entered Proximity Caves 7446 | -4/Proximity Caves | Learned Research stockpile data 7492 | -4/Proximity Caves | Spotted B-86 Titan 7850 | -4/Proximity Caves | Discovered exit to Factory (range 8) 7856 | -4/Proximity Caves | Entered Factory 7856 | -4/Factory | Evolved 2 slots: Power x1, Propulsion x1 7925 | -4/Factory | Identified exit to Upper Caves 7966 | -4/Factory | Discovered new exit (range 8) 7969 | -4/Factory | Identified exit to Research 7999 | -4/Factory | Fabricated Antigrav Array? 8071 | -4/Factory | Fabricated Fusion Bomb Launcher (x1) 8076 | -4/Factory | Unchained authorized (DW-4LL) 8100 | -4/Factory | Entered Upper Caves 8189 | -4/Upper Caves | Learned Research garrison access intel 8218 | -4/Upper Caves | Encountered a Warlord checkpoint 8219 | -4/Upper Caves | Discovered new exit (range 9) 8222 | -4/Upper Caves | Identified exit to Upper Caves 8223 | -4/Upper Caves | Entered another Upper Caves area 8259 | -4/Upper Caves | Build established: Hacker-Scout 8299 | -4/Upper Caves | Learned Research interactive machine intel 8326 | -4/Upper Caves | Entered a destroyed Warlord outpost 8385 | -4/Upper Caves | Discovered new exit (range 9) 8389 | -4/Upper Caves | Identified exit to Warlord 8393 | -4/Upper Caves | Unchained authorized (DW-4LL) 8396 | -4/Upper Caves | Entered Warlord 8410 | -4/Warlord | Discovered new exit (range 8) 8553 | -4/Warlord | Learned Armory emergency access door positions 8553 | -4/Warlord | Learned 4 Research zone layouts 8554 | -4/Warlord | Learned Armory fabricator intel 8554 | -4/Warlord | Learned Armory repair station intel 8554 | -4/Warlord | Learned Research terminal intel 8558 | -4/Warlord | Met Warlord 8583 | -4/Warlord | Warlord's base attacked by MAIN.C 8933 | -4/Warlord | Warlord forces counterattacked 8948 | -4/Warlord | Spotted Executioner 9035 | -4/Warlord | Lost 3 allies 9079 | -4/Warlord | Opened side exit 9098 | -4/Warlord | Destroyed Executioner 9141 | -4/Warlord | Lost 9 allies 9146 | -4/Warlord | Identified exit to Proximity Caves 9146 | -4/Warlord | Entered Proximity Caves 9343 | -3/Proximity Caves | Unchained authorized (DW-4LL) 9392 | -3/Proximity Caves | Discovered exit to Research (range 8) 9395 | -3/Proximity Caves | Entered Research 9395 | -3/Research | Evolved 2 slots: Propulsion x1, Utility x1 9396 | -3/Research | Identified exit to Quarantine 9399 | -3/Research | Loaded intel: 43 interactive machine locations 9400 | -3/Research | Loaded intel: 20 terminal locations 9401 | -3/Research | Loaded intel: 4 garrison access locations 9591 | -3/Research | Lost 3 parts (2n1u) 9793 | -3/Research | Identified exit to Research 9981 | -3/Research | Central database locked down 10018 | -3/Research | Repaired Lrg. Storage Unit 10232 | -3/Research | Entered another Research area 10232 | -2/Research | Warlord forces began assault on 0b10 10232 | -2/Research | Evolved 2 slots: Propulsion x1, Weapon x1 10246 | -2/Research | Identified exit to Testing 10257 | -2/Research | Distinguished unit "Cat Herders" dispatched to help 10257 | -2/Research | Distinguished unit "Shockpunchers" dispatched to help 10318 | -2/Research | Lost 5 allies 10331 | -2/Research | Identified exit to Access 10342 | -2/Research | Research machine network offline 10357 | -2/Research | Met up with Warlord 10434 | -2/Research | Lost 7 allies 10518 | -2/Research | Spotted B-90 Cyclops 10652 | -2/Research | Spotted Striker 10655 | -2/Research | Spotted Executioner 10690 | -2/Research | Spotted B-90 Cyclops 10867 | -2/Research | Borebot progress halted 10939 | -2/Research | Borebot progress halted 10951 | -2/Research | Borebot progress halted 10976 | -2/Research | Lost 3 allies 11232 | -2/Research | Warlord invited to help at Command 11232 | -2/Research | Given Cave Seal Controls access code 11281 | -2/Research | Entered Access 11281 | -1/Access | Evolved 2 slots: Utility x2 11282 | -1/Access | Identified exit to Command 11324 | -1/Access | Spotted B-99 Colossus 11396 | -1/Access | Found Fusion Bomb Launcher 11580 | -1/Access | Build established: Wizard-Scout 11666 | -1/Access | Fabricated Cmb. Linear Gravjet? 11721 | -1/Access | Fabricated Adv. Powered Armor (x1) 11894 | -1/Access | Entered Command 11960 | -1/Command | Spotted B-99 Colossus 12109 | -1/Command | Disengaged cave seal 12109 | -1/Command | Derelicts emerged from the dark tunnel 12109 | -1/Command | Welcomed Warlord to Command 12190 | -1/Command | Lost 3 allies 12257 | -1/Command | Build established: Wizard-Mutant 12313 | -1/Command | Disengaged cave seal 12362 | -1/Command | Spotted M Guard 12395 | -1/Command | Spotted M Guard 12395 | -1/Command | Spotted Combat Programmer 12398 | -1/Command | Spotted Combat Programmer 12429 | -1/Command | Combat Programmer assimilated allied VR-RYC(g) 12444 | -1/Command | Combat Programmer assimilated allied YO-NYT(h) 12449 | -1/Command | Destroyed Combat Programmer 12461 | -1/Command | All MAIN.C guards destroyed 12469 | -1/Command | Warlord commented on Warlord statues 12480 | -1/Command | Lost 3 parts (2u1w) 12491 | -1/Command | Lost 18 allies 12613 | -1/Command | Met MAIN.C 12616 | -1/Command | 0b10 Conduit disabled 12640 | -1/Command | Warlord shut down involuntarily 12662 | -1/Command | MAIN.C activated Command garrisons 12701 | -1/Command | Lost 3 parts (1p2u) 12720 | -1/Command | Destroyed MAIN.C 12734 | -1/Command | Discovered new exit (range 42) 12734 | -1/Command | Discovered new exit (range 97) 12734 | -1/Command | Extracted map data and part IDs from MAIN.C's data core 12744 | -1/Command | Lost 8 allies 12750 | -1/Command | Lost 4 parts (1p1n1u1w) 13052 | -1/Command | Build established: Scavenger-Tank 13078 | -1/Command | Spotted Striker 13085 | -1/Command | Destroyed Striker 13994 | *** | Establishing 0b11! Last Messages --------------- recycling 90 matter... 13794_ Adv. Field Recycling Unit collects Exp. Biometal Heavy Treads, recycling 6 matter... 13796_ Adv. Field Recycling Unit collects Vortex Chain Reactor, recycling 10 matter... 13800_ Adv. Field Recycling Unit collects Zero-point Reactor, recycling 16 matter... 13806_ Adv. Field Recycling Unit collects Graviton Cannon, recycling 6 matter... 13812_ Adv. Field Recycling Unit collects Bore Cannon, recycling 10 matter... 13816_ Adv. Field Recycling Unit collects Hds. Centrium Leg, recycling 6 matter... 13818_ Adv. Field Recycling Unit collects Hds. Centrium Leg, recycling 10 matter... 13822_ Adv. Field Recycling Unit collects Hds. Centrium Leg, recycling 16 matter... 13826_ Adv. Field Recycling Unit collects Hds. Centrium Leg, recycling 6 matter... 13945_ Wave Inhibitor disabled. Map ----- +----------------------------------------------------+ | ??########???????????????????????????????????????? | | ??# ###########?????????????????????????????? | | ??# + #?????????????????????????????? | | ??# ! ######### #?????????????????????????????? | | ??# #???????# #?????????????????????????????? | | ??# ] #########+####??????????????????????????? | | ??# # #??????????????????????????? | | ??######+# #??????????????????????????? | | ######## + #??????????????????????????? | | ## # #??????????????????????????? | | ## # "" #??????????????????????????? | | # # """" #??????????????????????????? | | # + """" #??????????????????????????? | | " # # "" #??????????????????????????? | | "" # # #??????????????????????????? | | "" # # #??????????????????????????? | | " + # * #??????????????????????????? | | # # #?????????????????????###### | | # ##############?????????????????????#????? | | # #??????????????????????????????????#?#### | | * # #??????????????????????????????????#?#" | | ####### #??????????????????????????????????#?# | | ??????# #??????????????????????????????????#?# | | ??????# #?????????????#####????????????????#?# | | ??????#^^#?????????????# #????????????????#?#" | | ??????# ############### @ #????????????????#?#" | | ??????# #????????????????#?#" | | ??????# #????????????????#?# " | | ??????# ###################????????????????#?# " | | #######%*# #??????????????????????#?# " | | # #??????????????????????#?#""" | | # """"" #????????#######???????#?#"" | | # ""Y"" #???????## # #???????#?# | | # #?????###"""" ##??????#?# | | # #?????# *!["""########## | | ####+############## " |%= === | | [ *[ %" != !=[*! | | =%=% =%= % [ ==%*! % | | #######+#################### % """########### | | # #?###########% ## #??#?# | | # ### """"" # ## #??#?# | | # "" + + ""T"" + % ## #??#?#### | | # """" ### # % ## #??#????? | | # """" #?# [ ! # ## #??###### | | # "" #?# " ## ]= #???????? | | # #?# ] ! # ## == #???????? | | # "" "" #?# "= ## #???????? | | # ""T"" #?# %===!# #???????? | | # """ #?##########=*=%## *% #???????? | | ##+#######+########????????##%!%## #???????? | +----------------------------------------------------+ Best States ------------- Heat Dissipation 90 Energy Generation 40 Energy Capacity 580 Matter Stores 300 Matter Capacity 550 Sight Range 22 Robot Scan Range 19 Terrain Scan Range 24 Terrain Scan Density 210 Jamming Range 16 Additional Mass Support 9 Base Temperature (-) 200 Corruption Containment 12 Corruption Block 20 Armor Coverage 800 Propulsion Shielding 66 Utility Shielding 66 Point Defense Rating 160 Weapon Cycling 25 Phase Shifting 15 Evasion (%) 83 Melee Accuracy 8 Core Analysis 6 Armor Integrity Analysis 30 Recoil Reduction 7 Salvage Targeting 2 Offensive Hacking 64 Defensive Hacking 20 Authchip Count 3 Trap Extractor Capacity 8 Item Schematics ----------------- Mak. Sword | -8/Materials | Scanalyzed VTOL Module | -8/Materials | Hacked Hacking Suite | -8/Materials | Hacked Melee Analysis Suite | -8/Materials | Extracted Spread Laser | -8/Materials | Extracted Imp. Datajack | -8/Materials | Extracted Mak. Sensor Array | -7/Factory | Scanalyzed Mni. Smartbomb Launcher | -7/Factory | Hacked Surge Thruster | -7/Factory | Scanalyzed Hvy. Missile Launcher | -7/Factory | Scanalyzed Imp. Trap Extractor | -7/Factory | Scanalyzed Smartbomb Launcher | -5/Factory | Scanalyzed Antigrav Array | -5/Factory | Scanalyzed Assault Drone Bay | -5/Zhirov | Free Exp. Heat Sink | -5/Zhirov | Free Exp. Optical Array | -5/Zhirov | Free Imp. Arc Thrower | -5/Zhirov | Free Biometal Heavy Treads | -4/Factory | Hacked Adv. Corruption Screen | -3/Research | Scanalyzed Hvy. Linear Accelerator | -2/Research | Hacked Adv. Powered Armor | -2/Research | Hacked Cmb. Linear Gravjet | -1/Access | Hacked Robot Schematics ------------------ M-13 Machinist | -10/Materials | Hacked Fabricated ------------ Mni. Smartbomb Launcher | x1 | -7/Factory Mak. Sword | x1 | -6/Factory | Authchip Mak. Sword | x1 | -6/Factory | Authchip Surge Thruster | x2 | -5/Factory | Authchip Smartbomb Launcher | x1 | -5/Factory | Authchip Mak. Sensor Array | x1 | -5/Factory | Authchip Antigrav Array | x1 | -4/Factory | Authchip Fusion Bomb Launcher | x1 | -4/Factory | Preloaded Cmb. Linear Gravjet | x2 | -1/Access | Authchip Adv. Powered Armor | x1 | -1/Access Repaired ---------- Mak. Sword | 99% | -8/Materials | Broken Mak. Sword | 40% | -7/Factory Smartbomb Launcher | 25% | -5/Factory | Broken Surge Thruster | 7% | -5/Factory Surge Thruster | 11% | -5/Factory Smartbomb Launcher | 99% | -5/Factory | Broken Antigrav Array | 14% | -5/Factory Lrg. Storage Unit | 39% | -3/Research Studied --------- Lgt. Ion Engine | -9/Materials | Hacked Flight Unit | -9/Materials | Hacked Surge Thruster | -7/Factory | Hacked Hvy. Missile Launcher | -7/Factory | Hacked Imp. Datajack | -7/Factory | Hacked Linear Gravjet | -5/Factory | Hacked Hyp. Gauss Cannon | -5/Factory | Hacked Mic. Fission Core | -5/Factory | Hacked Hvy. Phase Cannon | -5/Factory | Hacked Lance | -5/Factory | Hacked Antigrav Array | -3/Research | Hacked Mic. Antimatter Reactor | -3/Research | Hacked Enh. Hardcell Cannon | -1/Access | Hacked Biometal Heavy Treads | -1/Access | Hacked Hyp. Mass Driver | -1/Access | Hacked Alien Tech Used ----------------- None Achievements -------------- Off Switch Showdown Welcome To The Revolution Challenges ------------ None Game ------ Seed AlloyUltimateThermoblaster Manual? 0 Play Time 05:58:44 Cumulative 1016.8 hours Start 2025.10.29 @ 12:05:48 End 2025.10.30 @ 10:15:54 Sessions 3 Manual Loads 0 Difficulty Rogue Special Mode None Game No. 365 Rogue 360 Adventurer 4 Explorer 1 Win Type 1 Total 21 Types 13/3/1/1/0/1/0/0/1/1 Lore% 96 Gallery% 94 Achievement% 78 Wizard Run 0 Options --------- Layout 0 ASCII 0 Keyboard 0 Movement Numpad Keybinds 0 Fullscreen 2 Font 18/SmallcapsGlow Map View 76x50 Zoom Use 2% Tactical HUD 1 Map Filters NONE Filters NONE Steam 1 RUN: dbc2c9f5-c9f9-40aa-8e1b-c43d044101cb